Workbook

Sheet Resumo Postos
A6: RESUMO - PLANILHA DE CUSTOS E FORMAÇÃO DE PREÇOS
A7: Categoria | B7: Subitem | C7: Tipo de serviço (A) | D7: Jornada de trabalho | E7: Valor Estimado por empregado (B) | F7: Qtde de empregados por posto(C ) | G7: Valor Estimado por posto (D) = (B x C)* | H7: Qtde de postos (E) | I7: Valor total do serviço mensal (F) = (D x E) | J7: Valor total do serviço p/12 meses: (G) = (Fx12) | K7: Salário
A8: ASSISTENTE ADMINISTRATIVO | B8: Auxiliar Administrativo | C8: Assistente Administrativo (CBO Vinculado 4110-10). | D8: 8hs/dia | E8: ='Aux. Adm.'!G137 -> 4650.47 | F8: 1 | G8: =E8*F8 -> 4650.47 | H8: 4 | I8: =G8*H8 -> 18601.88 | J8: =I8*12 -> 223222.56 | K8: ='Aux. Adm.'!G30 -> 1457.93
B9: Assistente Operacional Administrativo-Nível II | C9: Assistente Administrativo (CBO Vinculado 4110-10). | D9: 8hs/dia | E9: ='Ass. Op. Adm. II'!G137 -> 5997.57 | F9: 1 | G9: =E9*F9 -> 5997.57 | H9: 2 | I9: =G9*H9 -> 11995.14 | J9: =I9*12 -> 143941.68 | K9: ='Ass. Op. Adm. II'!G39 -> 2068.45
B10: Assistente Operacional Administrativo-Nível I | C10: Assistente Administrativo (CBO Vinculado 4110-10). | D10: 8hs/dia | E10: ='Ass. Op. Adm. I'!G137 -> 8786.39 | F10: 1 | G10: =E10*F10 -> 8786.39 | H10: 2 | I10: =G10*H10 -> 17572.78 | J10: =I10*12 -> 210873.36 | K10: ='Ass. Op. Adm. I'!G30 -> 3219.12
A11: Total Assistente Administrativo | I11: =SUM(I8:I10) -> 48169.8 | J11: =SUM(J8:J10) -> 578037.6
A13: GABINETE | B13: Assistente Administrativo Nível III - Escolaridade superior | C13: Assistente Administrativo (CBO Vinculado 4110-10). | D13: 8hs/dia | E13: ='Ass. Adm. III'!G137 -> 13448.77 | F13: 1 | G13: ='Ass. Adm. III'!G137 -> 13448.77 | H13: 1 | I13: =G13*H13 -> 13448.77 | J13: =I13*12 -> 161385.24
A14: Total Assistente de Gabinete | I14: =SUM(I13:I13) -> 13448.77 | J14: =SUM(J13:J13) -> 161385.24
A16: SUPERINTENDÊNCIA | B16: Assistente Administrativo nível III - Escolaridade superior | C16: Assistente Administrativo (CBO Vinculado 4110-10). | D16: 8hs/dia | E16: ='Ass. Adm. III'!G137 -> 13448.77 | F16: 1 | G16: =E16*F16 -> 13448.77 | H16: 1 | I16: =G16*H16 -> 13448.77 | J16: =I16*12 -> 161385.24 | K16: ='Ass. Adm. III'!G30 -> 5085.79
A17: Total Assistente Superintendência | I17: =SUM(I16:I16) -> 13448.77 | J17: =SUM(J16:J16) -> 161385.24
A19: ASSISTENTE DE CONDUÇÃO | B19: Assistente de Condução | C19: Assistente de Condução (CBO Vinculado 3421-25). | D19: 8hs/dia | E19: ='Assist. Condução'!G137 -> 7091.76 | F19: 1 | G19: =E19*F19 -> 7091.76 | H19: 3 | I19: =G19*H19 -> 21275.28 | J19: =I19*12 -> 255303.36 | K19: ='Assist. Condução'!G38 -> 2465.18
A20: Total Assistente de Condução | I20: =SUM(I19:I19) -> 21275.28 | J20: =SUM(J19:J19) -> 255303.36
A22: DIÁRIAS - ASSISTENTE DE CONDUÇÃO | B22: Assistente de Condução | C22: Despesas com Viagens | D22: 15diárias/mês | E22: ='Despesas com Viagens - Diárias'!E14 -> 2480.8 | F22: 1 | G22: =E22*F22 -> 2480.8 | H22: 3 | I22: =G22*H22 -> 7442.4 | J22: =I22*12 -> 89308.8 | K22: ='Assist. Condução'!G30 -> 2465.18
A23: Total Diárias - Assistente de Condução | I23: =SUM(I22:I22) -> 7442.4 | J23: =SUM(J22:J22) -> 89308.8
A25: H. EXTRA - ASSISTENTE DE CONDUÇÃO | B25: Assistente de Condução | C25: Hora extra a 50% | D25: 30h/mês | E25: ='Assist. Condução - Hora Extra'!G136*30 -> 1131 | F25: 1 | G25: =E25*F25 -> 1131 | H25: 3 | I25: =G25*H25 -> 3393 | J25: =I25*12 -> 40716
A26: Total Horas Extras a 50% - Assistente de Condução | I26: =SUM(I25:I25) -> 3393 | J26: =SUM(J25:J25) -> 40716
C29: Valor Total Mensal dos Serviços | I29: =I17+I14+I11+I20+I23+I26 -> 107178.02
C31: Valor Global para 12 meses | J31: =J17+J14+J11+J20+J23+J26 -> 1286136.24

Sheet Resumo Valor
B2: Processo nº 59512.000251/2023-61-
B3: Objeto: CONTRATAÇÃO DE EMPRESA NA PRESTAÇÃO, DE FORMA CONTÍNUA, DOS SERVIÇOS DE APOIO ADMINISTRATIVO, EM REGIME DE DEDICAÇÃO EXCLUSIVA DE MÃO DE OBRA, A SER EXECUTADO NAS DEPENDÊNCIAS DA 13ª SUPERINTENDÊNCIA REGIONAL DA CODEVASF, NO ESTADO DA PARAÍBA
B6: ITEM | C6: DISCRIMINAÇÃO | D6: UNIDADE | E6: Nº DE MESES | F6: Nº DE POSTOS/MÊS | G6: QUANT. | H6: PREÇO UNITÁRIO | I6: TOTAL
B9: I.A | C9: EQUIPE
B10: 1.0 | C10: ASSISTENTE ADMINISTRATIVO
B11: 1.1 | C11: ='Resumo Postos'!B8 -> Auxiliar Administrativo | D11: mês | E11: 12 | F11: ='Resumo Postos'!H8 -> 4 | G11: =E11*F11 -> 48 | H11: ='Resumo Postos'!E8 -> 4650.47 | I11: =ROUND(G11*H11,2) -> 223222.56
B12: 1.2 | C12: ='Resumo Postos'!B9 -> Assistente Operacional Administrativo-Nível II | D12: mês | E12: 12 | F12: ='Resumo Postos'!H9 -> 2 | G12: =E12*F12 -> 24 | H12: ='Resumo Postos'!E9 -> 5997.57 | I12: =ROUND(G12*H12,2) -> 143941.68
B13: 1.3 | C13: ='Resumo Postos'!B10 -> Assistente Operacional Administrativo-Nível I | D13: mês | E13: 12 | F13: ='Resumo Postos'!H10 -> 2 | G13: =E13*F13 -> 24 | H13: ='Resumo Postos'!G10 -> 8786.39 | I13: =ROUND(G13*H13,2) -> 210873.36
B14: 2.0 | C14: ASSISTENTE DE GABINETE
B15: 2.1 | C15: ='Resumo Postos'!B13 -> Assistente Administrativo Nível III - Escolaridade superior | D15: mês | E15: 12 | F15: ='Resumo Postos'!H13 -> 1 | G15: =E15*F15 -> 12 | H15: ='Resumo Postos'!E13 -> 13448.77 | I15: =ROUND(G15*H15,2) -> 161385.24
B16: 3.0 | C16: ASSISTENTE SUPERINTENDÊNCIA
B17: 3.1 | C17: ='Resumo Postos'!B16 -> Assistente Administrativo nível III - Escolaridade superior | D17: mês | E17: 12 | F17: ='Resumo Postos'!H16 -> 1 | G17: =E17*F17 -> 12 | H17: ='Resumo Postos'!E16 -> 13448.77 | I17: =ROUND(G17*H17,2) -> 161385.24
B18: 4.0 | C18: ASSISTENTE DE CONDUÇÃO
B19: 4.1 | C19: ='Resumo Postos'!B19 -> Assistente de Condução | D19: mês | E19: 12 | F19: ='Resumo Postos'!H19 -> 3 | G19: =E19*F19 -> 36 | H19: ='Resumo Postos'!E19 -> 7091.76 | I19: =ROUND(G19*H19,2) -> 255303.36
B20: 4.2 | C20: Diárias | D20: mês | E20: 12 | F20: ='Resumo Postos'!H22 -> 3 | G20: =E20*F20 -> 36 | H20: ='Resumo Postos'!E22 -> 2480.8 | I20: 89308.8
B21: 4.3 | C21: Horas Extras | D21: mês | E21: 12 | F21: ='Resumo Postos'!H25 -> 3 | G21: 36 | H21: ='Resumo Postos'!E25 -> 1131 | I21: 40716
B22: TOTAL GERAL: | I22: =SUM(I11:I21) -> 1286136.24

Sheet Resumo Qtd
B1: ITEM | C1: DISCRIMINAÇÃO | D1: UNIDADE | E1: Nº DE MESES | F1: Nº DE POSTOS/MÊS
B4: 1.0 | C4: ASSISTENTE ADMINISTRATIVO
B5: 1.1 | C5: ='Resumo Postos'!B8 -> Auxiliar Administrativo | D5: mês | E5: 12 | F5: ='Resumo Postos'!H8 -> 4
B6: 1.2 | C6: ='Resumo Postos'!B9 -> Assistente Operacional Administrativo-Nível II | D6: mês | E6: 12 | F6: ='Resumo Postos'!H9 -> 2
B7: 1.2 | C7: ='Resumo Postos'!B10 -> Assistente Operacional Administrativo-Nível I | D7: mês | E7: 12 | F7: ='Resumo Postos'!H10 -> 2
B8: 2.0 | C8: ASSISTENTE DE GABINETE
B9: 2.1 | C9: ='Resumo Postos'!B13 -> Assistente Administrativo Nível III - Escolaridade superior | D9: mês | E9: 12 | F9: ='Resumo Postos'!H13 -> 1
B10: 3.0 | C10: ASSISTENTE SUPERINTENDÊNCIA
B11: 3.1 | C11: ='Resumo Postos'!B16 -> Assistente Administrativo nível III - Escolaridade superior | D11: mês | E11: 12 | F11: ='Resumo Postos'!H16 -> 1
B12: 4.0 | C12: ASSISTENTE DE CONDUÇÃO
B13: 4.1 | C13: ='Resumo Postos'!B19 -> Assistente de Condução | D13: mês | E13: 12 | F13: ='Resumo Postos'!H19 -> 3
B14: 4.2 | C14: Diárias | D14: mês | E14: 12 | F14: ='Resumo Postos'!H22 -> 3
B15: 4.3 | C15: Horas Extras | D15: mês | E15: 12 | F15: ='Resumo Postos'!H25 -> 3

Sheet Recepcionista (hidden)
A6: PLANILHA DE CUSTOS E FORMAÇÃO DE PREÇOS
B8: Nº Processo | E8: 59512.000251/2023-61
B9: Licitação nº
A10: DISCRIMINAÇÃO DOS SERVIÇOS (dados referentes à contratação)
A12: A | B12: Ano do Acordo, Convenção ou Dissídio Coletivo | F12: 2023 - PE000108/2023
A13: B | B13: Município/UF | F13: Recife/PE
A14: C | B14: Data de Registro no MTE | F14: 15/02/2023
A15: D | B15: Nº de meses de execução contratual | F15: 12 (doze) meses
A17: IDENTIFICAÇÃO DO SERVIÇO
A19: Tipo de Serviço | C19: Unidade de Medida | E19: Quantidade total a contratar (em função da unidade de medida)
A20: Recepcionista | C20: Posto de serviço | E20: 1
A22: 1. MÓDULOS
A24: MÃO DE OBRA
A25: Mão de obra vinculada à execução contratual
A27: Dados para composição dos custos referente à mão de obra
A28: 1 | B28: Tipo de serviço | G28: Recepcionista
A29: 2 | B29: Classificação Brasileira de Ocupações (CBO) | G29: 4221-05 | H29: CCT 2020
A30: 3 | B30: Salário Normativo da Categoria Profissional | G30: 1424.79 | H30: 0.0393 | I30: Reajuste
A31: 4 | B31: Categoria profissional (vinculada à execução contratual) | G31: Apoio Administrativo
A32: 5 | B32: Data-Base da categoria (dia/mês/ano) | G32: 1º/01/2023
A35: MÓDULO 1: COMPOSIÇÃO DA REMUNERAÇÃO
A37: 1 | B37: Composição da Remuneração | G37: Valor (R$)
A38: A | B38: Salário Base | G38: =G30 -> 1424.79
B39: Total | G39: =G38 -> 1424.79
A41: MÓDULO 2: ENCARGOS E BENEFÍCIOS ANUAIS, MENSAIS E DIÁRIOS
A43: Submódulo 2.1 - 13º (décimo terceiro) Salário, Férias e Adicional de Férias
A45: 2.1 | B45: 13º (décimo terceiro) Salário, Férias e Adicional de Férias | F45: % | G45: Valor (R$)
A46: A | B46: 13º (décimo terceiro) Salário | F46: 0.0931 | G46: =G39*F46 -> 132.65
A47: B | B47: Férias e Adicional de Férias | F47: =(2.68%+8.05%) -> 0.1073 | G47: =G39*F47 -> 152.88
A48: TOTAL | F48: =SUM(F46:F47) -> 0.2004 | G48: =SUM(G46:G47) -> 285.53
A50: Submódulo 2.2 - Encargos previdenciários (GPS), Fundo de Garantia por tempo de Serviço (FGTS) e outras contribuições:
A52: 2.2 | B52: GPS, FGTS e outras contribuiçoes | F52: % | G52: Valor (R$)
A53: A | B53: INSS | F53: 0.2 | G53: =($G$39+$G$48)*F53 -> 342.06
A54: B | B54: SESI ou SESC | F54: 0.015 | G54: =($G$39+$G$48)*F54 -> 25.65
A55: C | B55: SENAI ou SENAC | F55: 0.01 | G55: 17.1
A56: D | B56: INCRA | F56: 0.002 | G56: 3.42
A57: E | B57: Salário educação | F57: 0.025 | G57: 42.76
A58: F | B58: FGTS | F58: 0.08 | G58: 136.83
A59: G | B59: SAT | F59: 0.03 | G59: 51.31
A60: H | B60: SEBRAE | F60: 0.006 | G60: 10.26
A61: TOTAL | F61: =SUM(F53:F60) -> 0.368 | G61: =SUM(G53:G60) -> 629.39
A63: Submódulo 2.3 - Benefícios Mensais e Diários
A65: 2.3 | B65: Benefícios Mensais e Diários | G65: Valor (R$)
A66: A | B66: Transporte | G66: =IF((4.1*2*21)-(6%*G38)>0,(4.1*2*21)-(6%*G38),0) -> 86.71
A67: B | B67: Auxílio alimentação (Cláusula 11ª CCT 2023) | G67: =(8.91*21) -> 187.11
A68: C | B68: Outros(COBERTURA SOCIAL) - Cláusula 15ªCCT 2023 + Cesta Básica 13º CCT 2023 | G68: =123.5+69.98 -> 193.48
B69: Total de Benefícios mensais e diários | G69: =SUM(G66:G68) -> 467.3
A71: QUADRO RESUMO DO MÓDULO 2 - Encargos e Benefícios anuais, mensais e diários
A73: 2 | B73: Encargos e Benefícios anuais, mensais e diários | G73: Valor (R$)
A74: 2.1 | B74: 13º (décimo terceiro) Salário, Férias e Adicional de Férias | G74: =G48 -> 285.53
A75: 2.2 | B75: GPS, FGTS e outras contribuiçoes | G75: =G61 -> 629.39
A76: 2.3 | B76: Benefícios Mensais e Diários | G76: =G69 -> 467.3
A77: TOTAL | G77: =SUM(G74:G76) -> 1382.22
A79: MÓDULO 3 - PROVISÃO PARA RESCISÃO
A81: 3 | B81: Provisão para Rescisão | F81: % | G81: Valor (R$)
A82: A | B82: Aviso prévio indenizado | F82: 0.0242 | G82: =(G39)*F82 -> 34.48
A83: B | B83: Incidência do FGTS sobre Aviso Prévio Indenizado | F83: =F82*F58 -> 0.0019 | G83: =(G39)*F83 -> 2.71
A84: C | B84: Multa do FGTS e contribuição social sobre o Aviso Prévio Indenizado | F84: 0.0402 | G84: =(G39)*F84 -> 57.28
A85: D | B85: Aviso Prévio Trabalhado | F85: 0.0014 | G85: =(G39)*F85 -> 1.99
A86: E | B86: Incidência dos encargos do submódulo 2.2 sobre Aviso Prévio Trabalhado | F86: =F85*F61 -> 0.0005 | G86: =(G39)*F86 -> 0.71
A87: F | B87: Multa do FGTS e contribuição social sobre o Aviso Prévio Trabalhado | F87: 0.0066 | G87: =(G39)*F87 -> 9.4
A88: TOTAL | F88: =SUM(F82:F87) -> 0.0748 | G88: =SUM(G82:G87) -> 106.57
A90: MÓDULO 4 - CUSTO DE REPOSIÇÃO DO PROFISSIONAL AUSENTE
A92: Submódulo 4.1 - Ausências Legais
A93: 4.1 | B93: Ausências legais | F93: % | G93: Valor (R$)
A94: A | B94: Férias | F94: 0.0908 | G94: =G39*F94 -> 129.37
A95: B | B95: Ausências legais | F95: 0.0058 | G95: =G39*F95 -> 8.26
A96: C | B96: Licença paternidade | F96: 0.0002 | G96: =G39*F96 -> 0.28
A97: D | B97: Ausência por Acidente de trabalho | F97: 0.0001 | G97: =G39*F97 -> 0.14
A98: E | B98: Afastamento Maternidade | F98: 0.0006 | G98: =G39*F98 -> 0.85
A99: F | B99: Outros (auxílio doença) | F99: 0.0268 | G99: =G39*F99 -> 38.18
A100: TOTAL | F100: =SUM(F94:F99) -> 0.1243 | G100: =SUM(G94:G99) -> 177.08
A103: QUADRO RESUMO DO MÓDULO 4 - Custo de Reposição do Profissional Ausente
A105: 4 | B105: Custo de Reposição do Profissional Ausente | G105: Valor (R$)
A106: 4.1 | B106: Ausências legais | G106: =G100 -> 177.08
A107: TOTAL | G107: =G106 -> 177.08
A109: MÓDULO 5 - INSUMOS DIVERSOS
A111: 5 | B111: Insumos Diversos | G111: Valor (R$)
A112: A | B112: Uniformes | G112: 30
B113: Total | G113: =SUM(G112) -> 30
A115: MÓDULO 6 - CUSTOS INDIRETOS, TRIBUTOS E LUCRO
A117: 6 | B117: Custos Indiretos, Tributos e Lucro | F117: % | G117: Valor (R$)
A118: A | B118: Custos Indiretos | F118: 0.03 | G118: =G134*F118 -> 93.62
A119: B | B119: Lucro | F119: 0.0679 | G119: =(G134+G118)*F119 -> 218.25
A120: C | B120: Tributos
A121: c.1 | B121: COFINS | F121: 0.076 | G121: =E141 -> 304.22
A122: c.2 | B122: PIS | F122: 0.0165 | G122: =E142 -> 66.05
A123: c.3 | B123: ISSQN | F123: 0.05 | G123: =E143 -> 200.15
B124: Total | F124: =SUM(F118:F123) -> 0.2404 | G124: =SUM(G118:G123) -> 882.29
A126: 2. QUADRO - RESUMO DO CUSTO POR EMPREGADO
B128: Mão de obra vinculada à execução contratual (valor por empregado) | G128: Valor (R$)
A129: A | B129: Módulo 1 - Composição da Remuneração | G129: =G39 -> 1424.79
A130: B | B130: Módulo 2 - Encargos e Benefícios Anuais, Mensais e Diários | G130: =G77 -> 1382.22
A131: C | B131: Módulo 3 - Provisão para recisão | G131: =G88 -> 106.57
A132: D | B132: Módulo 4 - Custo de Reposição do Profissional Ausente | G132: =G107 -> 177.08
A133: E | B133: Módulo 5 - Insumos diversos | G133: =G113 -> 30
A134: Subtotal ( A + B +C + D + E) | G134: =SUM(G129:G133) -> 3120.66
A135: E | B135: Módulo 6 - Custos indiretos, Tributos e lucro | G135: =G124 -> 882.29
A136: Valor total por empregado | G136: =G134+G135 -> 4002.95
A138: P0 = (MÓD 1+MÓD 2+MÓD 3+MÓD 4) + (CI) + (L) | E138: =G39+G77+G88+G107+G113+G118+G119 -> 3432.53
A139: P1 = P0/(1 - (pis+confins+iss)) | E139: =E138/(1-(F121+F122+F123)) -> 4002.95
A140: T = P1 - P0 | E140: =E139-E138 -> 570.42
A141: COFINS = ((cofins)/(pis+cofins+iss) x T | E141: =((F121)/(F121+F122+F123))*E140 -> 304.22
A142: PIS = ((pis)/(pis+cofins+iss) x T | E142: =((F122)/(F121+F122+F123))*E140 -> 66.05
A143: ISS = (iss/(pis+cofins+iss)) x T | E143: =((F123/(F121+F122+F123))*E140) -> 200.15

Sheet Aux. Adm.
A6: PLANILHA DE CUSTOS E FORMAÇÃO DE PREÇOS
B8: Nº Processo | E8: =Recepcionista!E8 -> 59512.000251/2023-61
B9: Licitação nº
A10: DISCRIMINAÇÃO DOS SERVIÇOS (dados referentes à contratação)
A12: A | B12: Ano do Acordo, Convenção ou Dissídio Coletivo | F12: 2023 - PB000071/2023
A13: B | B13: Município/UF | F13: João Pessoa/PB
A14: C | B14: Data de Registro no MTE | F14: 15/03/2023
A15: D | B15: Nº de meses de execução contratual | F15: 12 (doze) meses
A17: IDENTIFICAÇÃO DO SERVIÇO
A19: Tipo de Serviço | C19: Unidade de Medida | E19: Quantidade total a contratar (em função da unidade de medida)
A20: Auxiliar Administrativo | C20: Posto de serviço | E20: 1
A22: 1. MÓDULOS
A24: MÃO DE OBRA
A25: Mão de obra vinculada à execução contratual
A27: Dados para composição dos custos referente à mão de obra
A28: 1 | B28: Tipo de serviço | G28: Auxiliar Administrativo (A4)
A29: 2 | B29: Classificação Brasileira de Ocupações (CBO) | G29: 4110-10 | H29: CCT 2022
A30: 3 | B30: Salário Normativo da Categoria Profissional | G30: =1357.1*(1+H30) -> 1457.93 | H30: 0.0743 | I30: Reajuste
A31: 4 | B31: Categoria profissional (vinculada à execução contratual) | G31: Apoio Administrativo
A32: 5 | B32: Data-Base da categoria (dia/mês/ano) | G32: =Recepcionista!G32 -> 1º/01/2023
A35: MÓDULO 1: COMPOSIÇÃO DA REMUNERAÇÃO
A37: 1 | B37: Composição da Remuneração | G37: Valor (R$)
A38: A | B38: Salário Base | G38: =G30 -> 1457.93
B39: Total | G39: =G38 -> 1457.93
A41: MÓDULO 2: ENCARGOS E BENEFÍCIOS ANUAIS, MENSAIS E DIÁRIOS
A43: Submódulo 2.1 - 13º (décimo terceiro) Salário, Férias e Adicional de Férias
A45: 2.1 | B45: 13º (décimo terceiro) Salário, Férias e Adicional de Férias | F45: % | G45: Valor (R$)
A46: A | B46: 13º (décimo terceiro) Salário | F46: 0.0833 | G46: =G39*F46 -> 121.45
A47: B | B47: Férias e Adicional de Férias | F47: 0.121 | G47: =G39*F47 -> 176.41
B48: Incidência do módulo 2.2 sobre o módulo 2.1 | F48: 0.0752 | G48: =G39*F48 -> 109.64
A49: TOTAL | F49: =SUM(F46:F48) -> 0.2795 | G49: =SUM(G46:G48) -> 407.5
A51: Submódulo 2.2 - Encargos previdenciários (GPS), Fundo de Garantia por tempo de Serviço (FGTS) e outras contribuições:
A53: 2.2 | B53: GPS, FGTS e outras contribuiçoes | F53: % | G53: Valor (R$)
A54: A | B54: INSS | F54: =Recepcionista!F53 -> 0.2 | G54: =($G$39+$G$49)*F54 -> 373.09
A55: B | B55: SESI ou SESC | F55: =Recepcionista!F54 -> 0.015 | G55: =($G$39+$G$49)*F55 -> 27.98
A56: C | B56: SENAI ou SENAC | F56: =Recepcionista!F55 -> 0.01 | G56: 18.65
A57: D | B57: INCRA | F57: =Recepcionista!F56 -> 0.002 | G57: 3.73
A58: E | B58: Salário educação | F58: =Recepcionista!F57 -> 0.025 | G58: 46.64
A59: F | B59: FGTS | F59: =Recepcionista!F58 -> 0.08 | G59: 149.23
A60: G | B60: SAT | F60: =Recepcionista!F59 -> 0.03 | G60: 55.96
A61: H | B61: SEBRAE | F61: =Recepcionista!F60 -> 0.006 | G61: 11.19
A62: TOTAL | F62: =SUM(F54:F61) -> 0.368 | G62: =SUM(G54:G61) -> 686.47
A64: Submódulo 2.3 - Benefícios Mensais e Diários
A66: 2.3 | B66: Benefícios Mensais e Diários | G66: Valor (R$)
A67: A | B67: Transporte | G67: =IF((4.7*2*21)-(6%*G38)>0,(4.7*2*21)-(6%*G38),0) -> 109.92
A68: B | B68: Auxílio alimentação (Cláusula 12ª CCT 2023) | G68: 500
A69: C | B69: Auxílio Saúde - Cláusula 14ª; Auxílio Morte/Funeral - Cláusula 16ª; Seguro de Vida - Cláusula 18ª; Assistência e Cuidado Pessoal - Cláusula 20ª | G69: =20+5+5+40 -> 70
B70: Total de Benefícios mensais e diários | G70: =SUM(G67:G69) -> 679.92
A72: QUADRO RESUMO DO MÓDULO 2 - Encargos e Benefícios anuais, mensais e diários
A74: 2 | B74: Encargos e Benefícios anuais, mensais e diários | G74: Valor (R$)
A75: 2.1 | B75: 13º (décimo terceiro) Salário, Férias e Adicional de Férias | G75: =G49 -> 407.5
A76: 2.2 | B76: GPS, FGTS e outras contribuiçoes | G76: =G62 -> 686.47
A77: 2.3 | B77: Benefícios Mensais e Diários | G77: =G70 -> 679.92
A78: TOTAL | G78: =SUM(G75:G77) -> 1773.89
A80: MÓDULO 3 - PROVISÃO PARA RESCISÃO
A82: 3 | B82: Provisão para Rescisão | F82: % | G82: Valor (R$)
A83: A | B83: Aviso prévio indenizado | F83: =Recepcionista!F82 -> 0.0242 | G83: =(G39)*F83 -> 35.28
A84: B | B84: Incidência do FGTS sobre Aviso Prévio Indenizado | F84: =Recepcionista!F83 -> 0.0019 | G84: =(G39)*F84 -> 2.77
A85: C | B85: Multa do FGTS e contribuição social sobre o Aviso Prévio Indenizado | F85: =Recepcionista!F84 -> 0.0402 | G85: =(G39)*F85 -> 58.61
A86: D | B86: Aviso Prévio Trabalhado | F86: =Recepcionista!F85 -> 0.0014 | G86: =(G39)*F86 -> 2.04
A87: E | B87: Incidência dos encargos do submódulo 2.2 sobre Aviso Prévio Trabalhado | F87: =Recepcionista!F86 -> 0.0005 | G87: =(G39)*F87 -> 0.73
A88: F | B88: Multa do FGTS e contribuição social sobre o Aviso Prévio Trabalhado | F88: =Recepcionista!F87 -> 0.0066 | G88: =(G39)*F88 -> 9.62
A89: TOTAL | F89: =SUM(F83:F88) -> 0.0748 | G89: =SUM(G83:G88) -> 109.05
A91: MÓDULO 4 - CUSTO DE REPOSIÇÃO DO PROFISSIONAL AUSENTE
A93: Submódulo 4.1 - Ausências Legais
A94: 4.1 | B94: Ausências legais | F94: % | G94: Valor (R$)
A95: A | B95: Férias | F95: =Recepcionista!F94 -> 0.0908 | G95: =G39*F95 -> 132.38
A96: B | B96: Ausências legais | F96: =Recepcionista!F95 -> 0.0058 | G96: =G39*F96 -> 8.46
A97: C | B97: Licença paternidade | F97: =Recepcionista!F96 -> 0.0002 | G97: =G39*F97 -> 0.29
A98: D | B98: Ausência por Acidente de trabalho | F98: =Recepcionista!F97 -> 0.0001 | G98: =G39*F98 -> 0.15
A99: E | B99: Afastamento Maternidade | F99: =Recepcionista!F98 -> 0.0006 | G99: =G39*F99 -> 0.87
A100: F | B100: Outros (auxílio doença) | F100: =Recepcionista!F99 -> 0.0268 | G100: =G39*F100 -> 39.07
A101: TOTAL | F101: =SUM(F95:F100) -> 0.1243 | G101: =SUM(G95:G100) -> 181.22
A104: QUADRO RESUMO DO MÓDULO 4 - Custo de Reposição do Profissional Ausente
A106: 4 | B106: Custo de Reposição do Profissional Ausente | G106: Valor (R$)
A107: 4.1 | B107: Ausências legais | G107: =G101 -> 181.22
A108: TOTAL | G108: =G107 -> 181.22
A110: MÓDULO 5 - INSUMOS DIVERSOS
A112: 5 | B112: Insumos Diversos | G112: Valor (R$)
A113: A | B113: Uniformes | G113: =Uniformes!F14 -> 103.39
B114: Total | G114: =SUM(G113) -> 103.39
A116: MÓDULO 6 - CUSTOS INDIRETOS, TRIBUTOS E LUCRO
A118: 6 | B118: Custos Indiretos, Tributos e Lucro | F118: % | G118: Valor (R$)
A119: A | B119: Custos Indiretos | F119: =Recepcionista!F118 -> 0.03 | G119: =G135*F119 -> 108.76
A120: B | B120: Lucro | F120: =Recepcionista!F119 -> 0.0679 | G120: =(G135+G119)*F120 -> 253.55
A121: C | B121: Tributos
A122: c.1 | B122: COFINS | F122: =Recepcionista!F121 -> 0.076 | G122: =E142 -> 353.43
A123: c.2 | B123: PIS | F123: =Recepcionista!F122 -> 0.0165 | G123: =E143 -> 76.73
A124: c.3 | B124: ISSQN | F124: =Recepcionista!F123 -> 0.05 | G124: =E144 -> 232.52
B125: Total | F125: =SUM(F119:F124) -> 0.2404 | G125: =SUM(G119:G124) -> 1024.99
A127: 2. QUADRO - RESUMO DO CUSTO POR EMPREGADO
B129: Mão de obra vinculada à execução contratual (valor por empregado) | G129: Valor (R$)
A130: A | B130: Módulo 1 - Composição da Remuneração | G130: =G39 -> 1457.93
A131: B | B131: Módulo 2 - Encargos e Benefícios Anuais, Mensais e Diários | G131: =G78 -> 1773.89
A132: C | B132: Módulo 3 - Provisão para recisão | G132: =G89 -> 109.05
A133: D | B133: Módulo 4 - Custo de Reposição do Profissional Ausente | G133: =G108 -> 181.22
A134: E | B134: Módulo 5 - Insumos diversos | G134: =G114 -> 103.39
A135: Subtotal ( A + B +C + D + E) | G135: =SUM(G130:G134) -> 3625.48
A136: E | B136: Módulo 6 - Custos indiretos, Tributos e lucro | G136: =G125 -> 1024.99
A137: Valor total por empregado | G137: =G135+G136 -> 4650.47
A139: P0 = (MÓD 1+MÓD 2+MÓD 3+MÓD 4) + (CI) + (L) | E139: =G39+G78+G89+G108+G114+G119+G120 -> 3987.79
A140: P1 = P0/(1 - (pis+confins+iss)) | E140: =E139/(1-(F122+F123+F124)) -> 4650.48
A141: T = P1 - P0 | E141: =E140-E139 -> 662.69
A142: COFINS = ((cofins)/(pis+cofins+iss) x T | E142: =((F122)/(F122+F123+F124))*E141 -> 353.43
A143: PIS = ((pis)/(pis+cofins+iss) x T | E143: =((F123)/(F122+F123+F124))*E141 -> 76.73
A144: ISS = (iss/(pis+cofins+iss)) x T | E144: =((F124/(F122+F123+F124))*E141) -> 232.52

Sheet Ass. Op. Adm. II
A6: PLANILHA DE CUSTOS E FORMAÇÃO DE PREÇOS
B8: ='Aux. Adm.'!B8 -> Nº Processo | E8: ='Aux. Adm.'!E8 -> 59512.000251/2023-61
B9: ='Aux. Adm.'!B9 -> Licitação nº
A10: DISCRIMINAÇÃO DOS SERVIÇOS (dados referentes à contratação)
A12: A | B12: Ano do Acordo, Convenção ou Dissídio Coletivo | F12: ='Aux. Adm.'!F12 -> 2023 - PB000071/2023
A13: B | B13: Município/UF | F13: ='Aux. Adm.'!F13 -> João Pessoa/PB
A14: C | B14: Data de Registro no MTE | F14: ='Aux. Adm.'!F14 -> 15/03/2023
A15: D | B15: Nº de meses de execução contratual | F15: ='Aux. Adm.'!F15 -> 12 (doze) meses
A17: IDENTIFICAÇÃO DO SERVIÇO
A19: Tipo de Serviço | C19: Unidade de Medida | E19: Quantidade total a contratar (em função da unidade de medida)
A20: Assistente Operacional Administrativo-Nivel II | C20: Posto de serviço | E20: 1
A22: 1. MÓDULOS
A24: MÃO DE OBRA
A25: Mão de obra vinculada à execução contratual
A27: Dados para composição dos custos referente à mão de obra
A28: 1 | B28: Tipo de serviço | G28: Administrativo - Nível II
A29: 2 | B29: Classificação Brasileira de Ocupações (CBO) | G29: 4110-10 | H29: CCT 2022
A30: 3 | B30: Salário Normativo da Categoria Profissional | G30: =1951.37*(1+H30) -> 2068.45 | H30: 0.06 | I30: Reajuste
A31: 4 | B31: Categoria profissional (vinculada à execução contratual) | G31: Administrativo II
A32: 5 | B32: Data-Base da categoria (dia/mês/ano) | G32: =Recepcionista!G32 -> 1º/01/2023
A35: MÓDULO 1: COMPOSIÇÃO DA REMUNERAÇÃO
A37: 1 | B37: Composição da Remuneração | G37: Valor (R$)
A38: A | B38: Salário Base | G38: =G30 -> 2068.45
B39: Total | G39: =G38 -> 2068.45
A41: MÓDULO 2: ENCARGOS E BENEFÍCIOS ANUAIS, MENSAIS E DIÁRIOS
A43: Submódulo 2.1 - 13º (décimo terceiro) Salário, Férias e Adicional de Férias
A45: 2.1 | B45: 13º (décimo terceiro) Salário, Férias e Adicional de Férias | F45: % | G45: Valor (R$)
A46: A | B46: 13º (décimo terceiro) Salário | F46: ='Aux. Adm.'!F46 -> 0.0833 | G46: =G39*F46 -> 172.3
A47: B | B47: Férias e Adicional de Férias | F47: ='Aux. Adm.'!F47 -> 0.121 | G47: =G39*F47 -> 250.28
B48: Incidência do módulo 2.2 sobre o módulo 2.1 | F48: 0.0752 | G48: =G39*F48 -> 155.55
A49: TOTAL | F49: =SUM(F46:F48) -> 0.2795 | G49: =SUM(G46:G48) -> 578.13
A51: Submódulo 2.2 - Encargos previdenciários (GPS), Fundo de Garantia por tempo de Serviço (FGTS) e outras contribuições:
A53: 2.2 | B53: GPS, FGTS e outras contribuiçoes | F53: % | G53: Valor (R$)
A54: A | B54: INSS | F54: ='Aux. Adm.'!F54 -> 0.2 | G54: =($G$39+$G$49)*F54 -> 529.32
A55: B | B55: SESI ou SESC | F55: ='Aux. Adm.'!F55 -> 0.015 | G55: =($G$39+$G$49)*F55 -> 39.7
A56: C | B56: SENAI ou SENAC | F56: ='Aux. Adm.'!F56 -> 0.01 | G56: 26.47
A57: D | B57: INCRA | F57: ='Aux. Adm.'!F57 -> 0.002 | G57: 5.29
A58: E | B58: Salário educação | F58: ='Aux. Adm.'!F58 -> 0.025 | G58: 66.16
A59: F | B59: FGTS | F59: ='Aux. Adm.'!F59 -> 0.08 | G59: 211.73
A60: G | B60: SAT | F60: ='Aux. Adm.'!F60 -> 0.03 | G60: 79.4
A61: H | B61: SEBRAE | F61: ='Aux. Adm.'!F61 -> 0.006 | G61: 15.88
A62: TOTAL | F62: =SUM(F54:F61) -> 0.368 | G62: =SUM(G54:G61) -> 973.95
A64: Submódulo 2.3 - Benefícios Mensais e Diários
A66: 2.3 | B66: Benefícios Mensais e Diários | G66: Valor (R$)
A67: A | B67: Transporte | G67: =IF((4.7*2*21)-(6%*G38)>0,(4.7*2*21)-(6%*G38),0) -> 73.29
A68: B | B68: Auxílio alimentação (Cláusula 12ª CCT 2023) | G68: 500
A69: C | B69: Auxílio Saúde - Cláusula 14ª; Auxílio Morte/Funeral - Cláusula 16ª; Seguro de Vida - Cláusula 18ª; Assistência e Cuidado Pessoal - Cláusula 20ª | G69: =20+5+5+40 -> 70
B70: Total de Benefícios mensais e diários | G70: =SUM(G67:G69) -> 643.29
A72: QUADRO RESUMO DO MÓDULO 2 - Encargos e Benefícios anuais, mensais e diários
A74: 2 | B74: Encargos e Benefícios anuais, mensais e diários | G74: Valor (R$)
A75: 2.1 | B75: 13º (décimo terceiro) Salário, Férias e Adicional de Férias | G75: =G49 -> 578.13
A76: 2.2 | B76: GPS, FGTS e outras contribuiçoes | G76: =G62 -> 973.95
A77: 2.3 | B77: Benefícios Mensais e Diários | G77: =G70 -> 643.29
A78: TOTAL | G78: =SUM(G75:G77) -> 2195.37
A80: MÓDULO 3 - PROVISÃO PARA RESCISÃO
A82: 3 | B82: Provisão para Rescisão | F82: % | G82: Valor (R$)
A83: A | B83: Aviso prévio indenizado | F83: ='Aux. Adm.'!F83 -> 0.0242 | G83: =(G39)*F83 -> 50.06
A84: B | B84: Incidência do FGTS sobre Aviso Prévio Indenizado | F84: ='Aux. Adm.'!F84 -> 0.0019 | G84: =(G39)*F84 -> 3.93
A85: C | B85: Multa do FGTS e contribuição social sobre o Aviso Prévio Indenizado | F85: ='Aux. Adm.'!F85 -> 0.0402 | G85: =(G39)*F85 -> 83.15
A86: D | B86: Aviso Prévio Trabalhado | F86: ='Aux. Adm.'!F86 -> 0.0014 | G86: =(G39)*F86 -> 2.9
A87: E | B87: Incidência dos encargos do submódulo 2.2 sobre Aviso Prévio Trabalhado | F87: ='Aux. Adm.'!F87 -> 0.0005 | G87: =(G39)*F87 -> 1.03
A88: F | B88: Multa do FGTS e contribuição social sobre o Aviso Prévio Trabalhado | F88: ='Aux. Adm.'!F88 -> 0.0066 | G88: =(G39)*F88 -> 13.65
A89: TOTAL | F89: =SUM(F83:F88) -> 0.0748 | G89: =SUM(G83:G88) -> 154.72
A91: MÓDULO 4 - CUSTO DE REPOSIÇÃO DO PROFISSIONAL AUSENTE
A93: Submódulo 4.1 - Ausências Legais
A94: 4.1 | B94: Ausências legais | F94: % | G94: Valor (R$)
A95: A | B95: Férias | F95: ='Aux. Adm.'!F95 -> 0.0908 | G95: =G39*F95 -> 187.82
A96: B | B96: Ausências legais | F96: ='Aux. Adm.'!F96 -> 0.0058 | G96: =G39*F96 -> 12
A97: C | B97: Licença paternidade | F97: ='Aux. Adm.'!F97 -> 0.0002 | G97: =G39*F97 -> 0.41
A98: D | B98: Ausência por Acidente de trabalho | F98: ='Aux. Adm.'!F98 -> 0.0001 | G98: =G39*F98 -> 0.21
A99: E | B99: Afastamento Maternidade | F99: ='Aux. Adm.'!F99 -> 0.0006 | G99: =G39*F99 -> 1.24
A100: F | B100: Outros (auxílio doença) | F100: ='Aux. Adm.'!F100 -> 0.0268 | G100: =G39*F100 -> 55.43
A101: TOTAL | F101: =SUM(F95:F100) -> 0.1243 | G101: =SUM(G95:G100) -> 257.11
A104: QUADRO RESUMO DO MÓDULO 4 - Custo de Reposição do Profissional Ausente
A106: 4 | B106: Custo de Reposição do Profissional Ausente | G106: Valor (R$)
A107: 4.1 | B107: Ausências legais | G107: =G101 -> 257.11
A108: TOTAL | G108: =G107 -> 257.11
A110: MÓDULO 5 - INSUMOS DIVERSOS
A112: 5 | B112: Insumos Diversos | G112: Valor (R$)
A113: A | B113: Uniformes
B114: Total | G114: =SUM(G113) -> 0
A116: MÓDULO 6 - CUSTOS INDIRETOS, TRIBUTOS E LUCRO
A118: 6 | B118: Custos Indiretos, Tributos e Lucro | F118: % | G118: Valor (R$)
A119: A | B119: Custos Indiretos | F119: ='Aux. Adm.'!F119 -> 0.03 | G119: =G135*F119 -> 140.27
A120: B | B120: Lucro | F120: ='Aux. Adm.'!F120 -> 0.0679 | G120: =(G135+G119)*F120 -> 327
A121: C | B121: Tributos
A122: c.1 | B122: COFINS | F122: ='Aux. Adm.'!F122 -> 0.076 | G122: =E142 -> 455.81
A123: c.2 | B123: PIS | F123: ='Aux. Adm.'!F123 -> 0.0165 | G123: =E143 -> 98.96
A124: c.3 | B124: ISSQN | F124: ='Aux. Adm.'!F124 -> 0.05 | G124: =E144 -> 299.88
B125: Total | F125: =SUM(F119:F124) -> 0.2404 | G125: =SUM(G119:G124) -> 1321.92
A127: 2. QUADRO - RESUMO DO CUSTO POR EMPREGADO
B129: Mão de obra vinculada à execução contratual (valor por empregado) | G129: Valor (R$)
A130: A | B130: Módulo 1 - Composição da Remuneração | G130: =G39 -> 2068.45
A131: B | B131: Módulo 2 - Encargos e Benefícios Anuais, Mensais e Diários | G131: =G78 -> 2195.37
A132: C | B132: Módulo 3 - Provisão para recisão | G132: =G89 -> 154.72
A133: D | B133: Módulo 4 - Custo de Reposição do Profissional Ausente | G133: =G108 -> 257.11
A134: E | B134: Módulo 5 - Insumos diversos | G134: =G114 -> 0
A135: Subtotal ( A + B +C + D + E) | G135: =SUM(G130:G134) -> 4675.65
A136: E | B136: Módulo 6 - Custos indiretos, Tributos e lucro | G136: =G125 -> 1321.92
A137: Valor total por empregado | G137: =G135+G136 -> 5997.57
A139: P0 = (MÓD 1+MÓD 2+MÓD 3+MÓD 4) + (CI) + (L) | E139: =G39+G78+G89+G108+G114+G119+G120 -> 5142.92
A140: P1 = P0/(1 - (pis+confins+iss)) | E140: =E139/(1-(F122+F123+F124)) -> 5997.57
A141: T = P1 - P0 | E141: =E140-E139 -> 854.65
A142: COFINS = ((cofins)/(pis+cofins+iss) x T | E142: =((F122)/(F122+F123+F124))*E141 -> 455.81
A143: PIS = ((pis)/(pis+cofins+iss) x T | E143: =((F123)/(F122+F123+F124))*E141 -> 98.96
A144: ISS = (iss/(pis+cofins+iss)) x T | E144: =((F124/(F122+F123+F124))*E141) -> 299.88

Sheet Ass. Op. Adm. I
A6: PLANILHA DE CUSTOS E FORMAÇÃO DE PREÇOS
B8: ='Aux. Adm.'!B8 -> Nº Processo | E8: ='Aux. Adm.'!E8 -> 59512.000251/2023-61
B9: ='Aux. Adm.'!B9 -> Licitação nº
A10: DISCRIMINAÇÃO DOS SERVIÇOS (dados referentes à contratação)
A12: A | B12: Ano do Acordo, Convenção ou Dissídio Coletivo | F12: ='Aux. Adm.'!F12 -> 2023 - PB000071/2023
A13: B | B13: Município/UF | F13: ='Aux. Adm.'!F13 -> João Pessoa/PB
A14: C | B14: Data de Registro no MTE | F14: ='Aux. Adm.'!F14 -> 15/03/2023
A15: D | B15: Nº de meses de execução contratual | F15: ='Aux. Adm.'!F15 -> 12 (doze) meses
A17: IDENTIFICAÇÃO DO SERVIÇO
A19: Tipo de Serviço | C19: Unidade de Medida | E19: Quantidade total a contratar (em função da unidade de medida)
A20: Assistente Operacional Administrativo-Nivel I | C20: Posto de serviço | E20: 1
A22: 1. MÓDULOS
A24: MÃO DE OBRA
A25: Mão de obra vinculada à execução contratual
A27: Dados para composição dos custos referente à mão de obra
A28: 1 | B28: Tipo de serviço | G28: Administrativo - Nível II
A29: 2 | B29: Classificação Brasileira de Ocupações (CBO) | G29: 4110-10 | H29: CCT 2022
A30: 3 | B30: Salário Normativo da Categoria Profissional | G30: =3036.91*(1+H30) -> 3219.12 | H30: 0.06 | I30: Reajuste
A31: 4 | B31: Categoria profissional (vinculada à execução contratual) | G31: Administrativo I
A32: 5 | B32: Data-Base da categoria (dia/mês/ano) | G32: =Recepcionista!G32 -> 1º/01/2023
A35: MÓDULO 1: COMPOSIÇÃO DA REMUNERAÇÃO
A37: 1 | B37: Composição da Remuneração | G37: Valor (R$)
A38: A | B38: Salário Base | G38: =G30 -> 3219.12
B39: Total | G39: =G38 -> 3219.12
A41: MÓDULO 2: ENCARGOS E BENEFÍCIOS ANUAIS, MENSAIS E DIÁRIOS
A43: Submódulo 2.1 - 13º (décimo terceiro) Salário, Férias e Adicional de Férias
A45: 2.1 | B45: 13º (décimo terceiro) Salário, Férias e Adicional de Férias | F45: % | G45: Valor (R$)
A46: A | B46: 13º (décimo terceiro) Salário | F46: ='Aux. Adm.'!F46 -> 0.0833 | G46: =G39*F46 -> 268.15
A47: B | B47: Férias e Adicional de Férias | F47: ='Aux. Adm.'!F47 -> 0.121 | G47: =G39*F47 -> 389.51
B48: Incidência do módulo 2.2 sobre o módulo 2.1 | F48: 0.0752 | G48: =G39*F48 -> 242.08
A49: TOTAL | F49: =SUM(F46:F48) -> 0.2795 | G49: =SUM(G46:G48) -> 899.74
A51: Submódulo 2.2 - Encargos previdenciários (GPS), Fundo de Garantia por tempo de Serviço (FGTS) e outras contribuições:
A53: 2.2 | B53: GPS, FGTS e outras contribuiçoes | F53: % | G53: Valor (R$)
A54: A | B54: INSS | F54: ='Aux. Adm.'!F54 -> 0.2 | G54: =($G$39+$G$49)*F54 -> 823.77
A55: B | B55: SESI ou SESC | F55: ='Aux. Adm.'!F55 -> 0.015 | G55: =($G$39+$G$49)*F55 -> 61.78
A56: C | B56: SENAI ou SENAC | F56: ='Aux. Adm.'!F56 -> 0.01 | G56: 41.19
A57: D | B57: INCRA | F57: ='Aux. Adm.'!F57 -> 0.002 | G57: 8.24
A58: E | B58: Salário educação | F58: ='Aux. Adm.'!F58 -> 0.025 | G58: 102.97
A59: F | B59: FGTS | F59: ='Aux. Adm.'!F59 -> 0.08 | G59: 329.51
A60: G | B60: SAT | F60: ='Aux. Adm.'!F60 -> 0.03 | G60: 123.57
A61: H | B61: SEBRAE | F61: ='Aux. Adm.'!F61 -> 0.006 | G61: 24.71
A62: TOTAL | F62: =SUM(F54:F61) -> 0.368 | G62: =SUM(G54:G61) -> 1515.74
A64: Submódulo 2.3 - Benefícios Mensais e Diários
A66: 2.3 | B66: Benefícios Mensais e Diários | G66: Valor (R$)
A67: A | B67: Transporte | G67: =IF((4.7*2*21)-(6%*G38)>0,(4.7*2*21)-(6%*G38),0) -> 4.25
A68: B | B68: Auxílio alimentação (Cláusula 12ª CCT 2023) | G68: 500
A69: C | B69: Auxílio Saúde - Cláusula 14ª; Auxílio Morte/Funeral - Cláusula 16ª; Seguro de Vida - Cláusula 18ª; Assistência e Cuidado Pessoal - Cláusula 20ª | G69: =20+5+5+40 -> 70
B70: Total de Benefícios mensais e diários | G70: =SUM(G67:G69) -> 574.25
A72: QUADRO RESUMO DO MÓDULO 2 - Encargos e Benefícios anuais, mensais e diários
A74: 2 | B74: Encargos e Benefícios anuais, mensais e diários | G74: Valor (R$)
A75: 2.1 | B75: 13º (décimo terceiro) Salário, Férias e Adicional de Férias | G75: =G49 -> 899.74
A76: 2.2 | B76: GPS, FGTS e outras contribuiçoes | G76: =G62 -> 1515.74
A77: 2.3 | B77: Benefícios Mensais e Diários | G77: =G70 -> 574.25
A78: TOTAL | G78: =SUM(G75:G77) -> 2989.73
A80: MÓDULO 3 - PROVISÃO PARA RESCISÃO
A82: 3 | B82: Provisão para Rescisão | F82: % | G82: Valor (R$)
A83: A | B83: Aviso prévio indenizado | F83: ='Aux. Adm.'!F83 -> 0.0242 | G83: =(G39)*F83 -> 77.9
A84: B | B84: Incidência do FGTS sobre Aviso Prévio Indenizado | F84: ='Aux. Adm.'!F84 -> 0.0019 | G84: =(G39)*F84 -> 6.12
A85: C | B85: Multa do FGTS e contribuição social sobre o Aviso Prévio Indenizado | F85: ='Aux. Adm.'!F85 -> 0.0402 | G85: =(G39)*F85 -> 129.41
A86: D | B86: Aviso Prévio Trabalhado | F86: ='Aux. Adm.'!F86 -> 0.0014 | G86: =(G39)*F86 -> 4.51
A87: E | B87: Incidência dos encargos do submódulo 2.2 sobre Aviso Prévio Trabalhado | F87: ='Aux. Adm.'!F87 -> 0.0005 | G87: =(G39)*F87 -> 1.61
A88: F | B88: Multa do FGTS e contribuição social sobre o Aviso Prévio Trabalhado | F88: ='Aux. Adm.'!F88 -> 0.0066 | G88: =(G39)*F88 -> 21.25
A89: TOTAL | F89: =SUM(F83:F88) -> 0.0748 | G89: =SUM(G83:G88) -> 240.8
A91: MÓDULO 4 - CUSTO DE REPOSIÇÃO DO PROFISSIONAL AUSENTE
A93: Submódulo 4.1 - Ausências Legais
A94: 4.1 | B94: Ausências legais | F94: % | G94: Valor (R$)
A95: A | B95: Férias | F95: ='Aux. Adm.'!F95 -> 0.0908 | G95: =G39*F95 -> 292.3
A96: B | B96: Ausências legais | F96: ='Aux. Adm.'!F96 -> 0.0058 | G96: =G39*F96 -> 18.67
A97: C | B97: Licença paternidade | F97: ='Aux. Adm.'!F97 -> 0.0002 | G97: =G39*F97 -> 0.64
A98: D | B98: Ausência por Acidente de trabalho | F98: ='Aux. Adm.'!F98 -> 0.0001 | G98: =G39*F98 -> 0.32
A99: E | B99: Afastamento Maternidade | F99: ='Aux. Adm.'!F99 -> 0.0006 | G99: =G39*F99 -> 1.93
A100: F | B100: Outros (auxílio doença) | F100: ='Aux. Adm.'!F100 -> 0.0268 | G100: =G39*F100 -> 86.27
A101: TOTAL | F101: =SUM(F95:F100) -> 0.1243 | G101: =SUM(G95:G100) -> 400.13
A104: QUADRO RESUMO DO MÓDULO 4 - Custo de Reposição do Profissional Ausente
A106: 4 | B106: Custo de Reposição do Profissional Ausente | G106: Valor (R$)
A107: 4.1 | B107: Ausências legais | G107: =G101 -> 400.13
A108: TOTAL | G108: =G107 -> 400.13
A110: MÓDULO 5 - INSUMOS DIVERSOS
A112: 5 | B112: Insumos Diversos | G112: Valor (R$)
A113: A | B113: Uniformes
B114: Total | G114: =SUM(G113) -> 0
A116: MÓDULO 6 - CUSTOS INDIRETOS, TRIBUTOS E LUCRO
A118: 6 | B118: Custos Indiretos, Tributos e Lucro | F118: % | G118: Valor (R$)
A119: A | B119: Custos Indiretos | F119: ='Aux. Adm.'!F119 -> 0.03 | G119: =G135*F119 -> 205.49
A120: B | B120: Lucro | F120: ='Aux. Adm.'!F120 -> 0.0679 | G120: =(G135+G119)*F120 -> 479.05
A121: C | B121: Tributos
A122: c.1 | B122: COFINS | F122: ='Aux. Adm.'!F122 -> 0.076 | G122: =E142 -> 667.77
A123: c.2 | B123: PIS | F123: ='Aux. Adm.'!F123 -> 0.0165 | G123: =E143 -> 144.98
A124: c.3 | B124: ISSQN | F124: ='Aux. Adm.'!F124 -> 0.05 | G124: =E144 -> 439.32
B125: Total | F125: =SUM(F119:F124) -> 0.2404 | G125: =SUM(G119:G124) -> 1936.61
A127: 2. QUADRO - RESUMO DO CUSTO POR EMPREGADO
B129: Mão de obra vinculada à execução contratual (valor por empregado) | G129: Valor (R$)
A130: A | B130: Módulo 1 - Composição da Remuneração | G130: =G39 -> 3219.12
A131: B | B131: Módulo 2 - Encargos e Benefícios Anuais, Mensais e Diários | G131: =G78 -> 2989.73
A132: C | B132: Módulo 3 - Provisão para recisão | G132: =G89 -> 240.8
A133: D | B133: Módulo 4 - Custo de Reposição do Profissional Ausente | G133: =G108 -> 400.13
A134: E | B134: Módulo 5 - Insumos diversos | G134: =G114 -> 0
A135: Subtotal ( A + B +C + D + E) | G135: =SUM(G130:G134) -> 6849.78
A136: E | B136: Módulo 6 - Custos indiretos, Tributos e lucro | G136: =G125 -> 1936.61
A137: Valor total por empregado | G137: =G135+G136 -> 8786.39
A139: P0 = (MÓD 1+MÓD 2+MÓD 3+MÓD 4) + (CI) + (L) | E139: =G39+G78+G89+G108+G114+G119+G120 -> 7534.32
A140: P1 = P0/(1 - (pis+confins+iss)) | E140: =E139/(1-(F122+F123+F124)) -> 8786.38
A141: T = P1 - P0 | E141: =E140-E139 -> 1252.06
A142: COFINS = ((cofins)/(pis+cofins+iss) x T | E142: =((F122)/(F122+F123+F124))*E141 -> 667.77
A143: PIS = ((pis)/(pis+cofins+iss) x T | E143: =((F123)/(F122+F123+F124))*E141 -> 144.98
A144: ISS = (iss/(pis+cofins+iss)) x T | E144: =((F124/(F122+F123+F124))*E141) -> 439.32

Sheet Ass. Adm. III
A6: PLANILHA DE CUSTOS E FORMAÇÃO DE PREÇOS
B8: ='Aux. Adm.'!B8 -> Nº Processo | E8: ='Aux. Adm.'!E8 -> 59512.000251/2023-61
B9: ='Aux. Adm.'!B9 -> Licitação nº
A10: DISCRIMINAÇÃO DOS SERVIÇOS (dados referentes à contratação)
A12: A | B12: Ano do Acordo, Convenção ou Dissídio Coletivo | F12: ='Aux. Adm.'!F12 -> 2023 - PB000071/2023
A13: B | B13: Município/UF | F13: ='Aux. Adm.'!F13 -> João Pessoa/PB
A14: C | B14: Data de Registro no MTE | F14: ='Aux. Adm.'!F14 -> 15/03/2023
A15: D | B15: Nº de meses de execução contratual | F15: ='Aux. Adm.'!F15 -> 12 (doze) meses
A17: IDENTIFICAÇÃO DO SERVIÇO
A19: Tipo de Serviço | C19: Unidade de Medida | E19: Quantidade total a contratar (em função da unidade de medida)
A20: Assistente Administrativo nível III - Escolaridade superior | C20: Posto de serviço | E20: 1
A22: 1. MÓDULOS
A24: MÃO DE OBRA
A25: Mão de obra vinculada à execução contratual
A27: Dados para composição dos custos referente à mão de obra
A28: 1 | B28: Tipo de serviço | G28: Assistente Administrativo nível III
A29: 2 | B29: Classificação Brasileira de Ocupações (CBO) | G29: 4110-10 | H29: CCT 2022
A30: 3 | B30: Salário Normativo da Categoria Profissional | G30: =5084.73+(1+H30) -> 5085.79 | H30: 0.06 | I30: Reajuste
A31: 4 | B31: Categoria profissional (vinculada à execução contratual) | G31: Assistente Administrativo nível III
A32: 5 | B32: Data-Base da categoria (dia/mês/ano) | G32: =Recepcionista!G32 -> 1º/01/2023
A35: MÓDULO 1: COMPOSIÇÃO DA REMUNERAÇÃO
A37: 1 | B37: Composição da Remuneração | G37: Valor (R$)
A38: A | B38: Salário Base | G38: =G30 -> 5085.79
B39: Total | G39: =G38 -> 5085.79
A41: MÓDULO 2: ENCARGOS E BENEFÍCIOS ANUAIS, MENSAIS E DIÁRIOS
A43: Submódulo 2.1 - 13º (décimo terceiro) Salário, Férias e Adicional de Férias
A45: 2.1 | B45: 13º (décimo terceiro) Salário, Férias e Adicional de Férias | F45: % | G45: Valor (R$)
A46: A | B46: 13º (décimo terceiro) Salário | F46: ='Ass. Op. Adm. II'!F46 -> 0.0833 | G46: =G39*F46 -> 423.65
A47: B | B47: Férias e Adicional de Férias | F47: ='Ass. Op. Adm. II'!F47 -> 0.121 | G47: =G39*F47 -> 615.38
B48: Incidência do módulo 2.2 sobre o módulo 2.1 | F48: 0.0752 | G48: =G39*F48 -> 382.45
A49: TOTAL | F49: =SUM(F46:F48) -> 0.2795 | G49: =SUM(G46:G48) -> 1421.48
A51: Submódulo 2.2 - Encargos previdenciários (GPS), Fundo de Garantia por tempo de Serviço (FGTS) e outras contribuições:
A53: 2.2 | B53: GPS, FGTS e outras contribuiçoes | F53: % | G53: Valor (R$)
A54: A | B54: INSS | F54: ='Ass. Op. Adm. II'!F54 -> 0.2 | G54: =($G$39+$G$49)*F54 -> 1301.45
A55: B | B55: SESI ou SESC | F55: ='Ass. Op. Adm. II'!F55 -> 0.015 | G55: =($G$39+$G$49)*F55 -> 97.61
A56: C | B56: SENAI ou SENAC | F56: ='Ass. Op. Adm. II'!F56 -> 0.01 | G56: 65.07
A57: D | B57: INCRA | F57: ='Ass. Op. Adm. II'!F57 -> 0.002 | G57: 13.01
A58: E | B58: Salário educação | F58: ='Ass. Op. Adm. II'!F58 -> 0.025 | G58: 162.68
A59: F | B59: FGTS | F59: ='Ass. Op. Adm. II'!F59 -> 0.08 | G59: 520.58
A60: G | B60: SAT | F60: ='Ass. Op. Adm. II'!F60 -> 0.03 | G60: 195.22
A61: H | B61: SEBRAE | F61: ='Ass. Op. Adm. II'!F61 -> 0.006 | G61: 39.04
A62: TOTAL | F62: =SUM(F54:F61) -> 0.368 | G62: =SUM(G54:G61) -> 2394.66
A64: Submódulo 2.3 - Benefícios Mensais e Diários
A66: 2.3 | B66: Benefícios Mensais e Diários | G66: Valor (R$)
A67: A | B67: Transporte | G67: =IF((4.7*2*21)-(6%*G38)>0,(4.7*2*21)-(6%*G38),0) -> 0
A68: B | B68: Auxílio alimentação (Cláusula 12ª CCT 2023) | G68: 500
A69: C | B69: Auxílio Saúde - Cláusula 14ª; Auxílio Morte/Funeral - Cláusula 16ª; Seguro de Vida - Cláusula 18ª; Assistência e Cuidado Pessoal - Cláusula 20ª | G69: =20+5+5+40 -> 70
B70: Total de Benefícios mensais e diários | G70: =SUM(G67:G69) -> 570
A72: QUADRO RESUMO DO MÓDULO 2 - Encargos e Benefícios anuais, mensais e diários
A74: 2 | B74: Encargos e Benefícios anuais, mensais e diários | G74: Valor (R$)
A75: 2.1 | B75: 13º (décimo terceiro) Salário, Férias e Adicional de Férias | G75: =G49 -> 1421.48
A76: 2.2 | B76: GPS, FGTS e outras contribuiçoes | G76: =G62 -> 2394.66
A77: 2.3 | B77: Benefícios Mensais e Diários | G77: =G70 -> 570
A78: TOTAL | G78: =SUM(G75:G77) -> 4386.14
A80: MÓDULO 3 - PROVISÃO PARA RESCISÃO
A82: 3 | B82: Provisão para Rescisão | F82: % | G82: Valor (R$)
A83: A | B83: Aviso prévio indenizado | F83: ='Ass. Op. Adm. II'!F83 -> 0.0242 | G83: =(G39)*F83 -> 123.08
A84: B | B84: Incidência do FGTS sobre Aviso Prévio Indenizado | F84: ='Ass. Op. Adm. II'!F84 -> 0.0019 | G84: =(G39)*F84 -> 9.66
A85: C | B85: Multa do FGTS e contribuição social sobre o Aviso Prévio Indenizado | F85: ='Ass. Op. Adm. II'!F85 -> 0.0402 | G85: =(G39)*F85 -> 204.45
A86: D | B86: Aviso Prévio Trabalhado | F86: ='Ass. Op. Adm. II'!F86 -> 0.0014 | G86: =(G39)*F86 -> 7.12
A87: E | B87: Incidência dos encargos do submódulo 2.2 sobre Aviso Prévio Trabalhado | F87: ='Ass. Op. Adm. II'!F87 -> 0.0005 | G87: =(G39)*F87 -> 2.54
A88: F | B88: Multa do FGTS e contribuição social sobre o Aviso Prévio Trabalhado | F88: ='Ass. Op. Adm. II'!F88 -> 0.0066 | G88: =(G39)*F88 -> 33.57
A89: TOTAL | F89: =SUM(F83:F88) -> 0.0748 | G89: =SUM(G83:G88) -> 380.42
A91: MÓDULO 4 - CUSTO DE REPOSIÇÃO DO PROFISSIONAL AUSENTE
A93: Submódulo 4.1 - Ausências Legais
A94: 4.1 | B94: Ausências legais | F94: % | G94: Valor (R$)
A95: A | B95: Férias | F95: ='Ass. Op. Adm. II'!F95 -> 0.0908 | G95: =G39*F95 -> 461.79
A96: B | B96: Ausências legais | F96: ='Ass. Op. Adm. II'!F96 -> 0.0058 | G96: =G39*F96 -> 29.5
A97: C | B97: Licença paternidade | F97: ='Ass. Op. Adm. II'!F97 -> 0.0002 | G97: =G39*F97 -> 1.02
A98: D | B98: Ausência por Acidente de trabalho | F98: ='Ass. Op. Adm. II'!F98 -> 0.0001 | G98: =G39*F98 -> 0.51
A99: E | B99: Afastamento Maternidade | F99: ='Ass. Op. Adm. II'!F99 -> 0.0006 | G99: =G39*F99 -> 3.05
A100: F | B100: Outros (auxílio doença) | F100: ='Ass. Op. Adm. II'!F100 -> 0.0268 | G100: =G39*F100 -> 136.3
A101: TOTAL | F101: =SUM(F95:F100) -> 0.1243 | G101: =SUM(G95:G100) -> 632.17
A104: QUADRO RESUMO DO MÓDULO 4 - Custo de Reposição do Profissional Ausente
A106: 4 | B106: Custo de Reposição do Profissional Ausente | G106: Valor (R$)
A107: 4.1 | B107: Ausências legais | G107: =G101 -> 632.17
A108: TOTAL | G108: =G107 -> 632.17
A110: MÓDULO 5 - INSUMOS DIVERSOS
A112: 5 | B112: Insumos Diversos | G112: Valor (R$)
A113: A | B113: Uniformes
B114: Total | G114: =SUM(G113) -> 0
A116: MÓDULO 6 - CUSTOS INDIRETOS, TRIBUTOS E LUCRO
A118: 6 | B118: Custos Indiretos, Tributos e Lucro | F118: % | G118: Valor (R$)
A119: A | B119: Custos Indiretos | F119: ='Ass. Op. Adm. II'!F119 -> 0.03 | G119: =G135*F119 -> 314.54
A120: B | B120: Lucro | F120: ='Ass. Op. Adm. II'!F120 -> 0.0679 | G120: =(G135+G119)*F120 -> 733.26
A121: C | B121: Tributos
A122: c.1 | B122: COFINS | F122: ='Ass. Op. Adm. II'!F122 -> 0.076 | G122: =E142 -> 1022.11
A123: c.2 | B123: PIS | F123: ='Ass. Op. Adm. II'!F123 -> 0.0165 | G123: =E143 -> 221.9
A124: c.3 | B124: ISSQN | F124: ='Ass. Op. Adm. II'!F124 -> 0.05 | G124: =E144 -> 672.44
B125: Total | F125: =SUM(F119:F124) -> 0.2404 | G125: =SUM(G119:G124) -> 2964.25
A127: 2. QUADRO - RESUMO DO CUSTO POR EMPREGADO
B129: Mão de obra vinculada à execução contratual (valor por empregado) | G129: Valor (R$)
A130: A | B130: Módulo 1 - Composição da Remuneração | G130: =G39 -> 5085.79
A131: B | B131: Módulo 2 - Encargos e Benefícios Anuais, Mensais e Diários | G131: =G78 -> 4386.14
A132: C | B132: Módulo 3 - Provisão para recisão | G132: =G89 -> 380.42
A133: D | B133: Módulo 4 - Custo de Reposição do Profissional Ausente | G133: =G108 -> 632.17
A134: E | B134: Módulo 5 - Insumos diversos | G134: =G114 -> 0
A135: Subtotal ( A + B +C + D + E) | G135: =SUM(G130:G134) -> 10484.52
A136: E | B136: Módulo 6 - Custos indiretos, Tributos e lucro | G136: =G125 -> 2964.25
A137: Valor total por empregado | G137: =G135+G136 -> 13448.77
A139: P0 = (MÓD 1+MÓD 2+MÓD 3+MÓD 4) + (CI) + (L) | E139: =G39+G78+G89+G108+G114+G119+G120 -> 11532.32
A140: P1 = P0/(1 - (pis+confins+iss)) | E140: =E139/(1-(F122+F123+F124)) -> 13448.77
A141: T = P1 - P0 | E141: =E140-E139 -> 1916.45
A142: COFINS = ((cofins)/(pis+cofins+iss) x T | E142: =((F122)/(F122+F123+F124))*E141 -> 1022.11
A143: PIS = ((pis)/(pis+cofins+iss) x T | E143: =((F123)/(F122+F123+F124))*E141 -> 221.9
A144: ISS = (iss/(pis+cofins+iss)) x T | E144: =((F124/(F122+F123+F124))*E141) -> 672.44

Sheet Ass. Com (hidden)
A6: PLANILHA DE CUSTOS E FORMAÇÃO DE PREÇOS
B8: ='Aux. Adm.'!B8 -> Nº Processo | E8: ='Aux. Adm.'!E8 -> 59512.000251/2023-61
B9: ='Aux. Adm.'!B9 -> Licitação nº
A10: DISCRIMINAÇÃO DOS SERVIÇOS (dados referentes à contratação)
A12: A | B12: Ano do Acordo, Convenção ou Dissídio Coletivo | F12: ='Aux. Adm.'!F12 -> 2023 - PB000071/2023
A13: B | B13: Município/UF | F13: ='Aux. Adm.'!F13 -> João Pessoa/PB
A14: C | B14: Data de Registro no MTE | F14: ='Aux. Adm.'!F14 -> 15/03/2023
A15: D | B15: Nº de meses de execução contratual | F15: ='Aux. Adm.'!F15 -> 12 (doze) meses
A17: IDENTIFICAÇÃO DO SERVIÇO
A19: Tipo de Serviço | C19: Unidade de Medida | E19: Quantidade total a contratar (em função da unidade de medida)
A20: Assistente de Comunicação | C20: Posto de serviço | E20: 1
A22: 1. MÓDULOS
A24: MÃO DE OBRA
A25: Mão de obra vinculada à execução contratual
A27: Dados para composição dos custos referente à mão de obra
A28: 1 | B28: Tipo de serviço | G28: Assistente de Comunicação
A29: 2 | B29: Classificação Brasileira de Ocupações (CBO) | G29: 2611 | H29: CCT 2020
A30: 3 | B30: Salário Normativo da Categoria Profissional | G30: 4050 | H30: 0.0393 | I30: Reajuste
A31: 4 | B31: Categoria profissional (vinculada à execução contratual) | G31: Profissional Nivel II
A32: 5 | B32: Data-Base da categoria (dia/mês/ano) | G32: 01° de janeiro
A35: MÓDULO 1: COMPOSIÇÃO DA REMUNERAÇÃO
A37: 1 | B37: Composição da Remuneração | G37: Valor (R$)
A38: A | B38: Salário Base | G38: =G30 -> 4050
B39: Total | G39: =G38 -> 4050
A41: MÓDULO 2: ENCARGOS E BENEFÍCIOS ANUAIS, MENSAIS E DIÁRIOS
A43: Submódulo 2.1 - 13º (décimo terceiro) Salário, Férias e Adicional de Férias
A45: 2.1 | B45: 13º (décimo terceiro) Salário, Férias e Adicional de Férias | F45: % | G45: Valor (R$)
A46: A | B46: 13º (décimo terceiro) Salário | F46: ='Ass. Op. Adm. II'!F46 -> 0.0833 | G46: =G39*F46 -> 337.37
A47: B | B47: Férias e Adicional de Férias | F47: ='Ass. Op. Adm. II'!F47 -> 0.121 | G47: =G39*F47 -> 490.05
A48: TOTAL | F48: =SUM(F46:F47) -> 0.2043 | G48: =SUM(G46:G47) -> 827.42
A50: Submódulo 2.2 - Encargos previdenciários (GPS), Fundo de Garantia por tempo de Serviço (FGTS) e outras contribuições:
A52: 2.2 | B52: GPS, FGTS e outras contribuiçoes | F52: % | G52: Valor (R$)
A53: A | B53: INSS | F53: ='Ass. Op. Adm. II'!F54 -> 0.2 | G53: =($G$39+$G$48)*F53 -> 975.48
A54: B | B54: SESI ou SESC | F54: ='Ass. Op. Adm. II'!F55 -> 0.015 | G54: =($G$39+$G$48)*F54 -> 73.16
A55: C | B55: SENAI ou SENAC | F55: ='Ass. Op. Adm. II'!F56 -> 0.01 | G55: 48.77
A56: D | B56: INCRA | F56: ='Ass. Op. Adm. II'!F57 -> 0.002 | G56: 9.75
A57: E | B57: Salário educação | F57: ='Ass. Op. Adm. II'!F58 -> 0.025 | G57: 121.94
A58: F | B58: FGTS | F58: ='Ass. Op. Adm. II'!F59 -> 0.08 | G58: 390.19
A59: G | B59: SAT | F59: ='Ass. Op. Adm. II'!F60 -> 0.03 | G59: 146.32
A60: H | B60: SEBRAE | F60: ='Ass. Op. Adm. II'!F61 -> 0.006 | G60: 29.26
A61: TOTAL | F61: =SUM(F53:F60) -> 0.368 | G61: =SUM(G53:G60) -> 1794.87
A63: Submódulo 2.3 - Benefícios Mensais e Diários
A65: 2.3 | B65: Benefícios Mensais e Diários | G65: Valor (R$)
A66: A | B66: Transporte | G66: =IF((3.7*2*21)-(6%*G38)>0,(3.7*2*21)-(6%*G38),0) -> 0
A67: B | B67: Auxílio alimentação (Cláusula 12ª CCT 2021) | G67: =(7.65*21) -> 160.65
A68: C | B68: Outros (COBERTURA SOCIAL) - Cláusula 13ª CCT 2021 | G68: ='Ass. Op. Adm. II'!G69 -> 70
B69: Total de Benefícios mensais e diários | G69: =SUM(G66:G68) -> 230.65
A71: QUADRO RESUMO DO MÓDULO 2 - Encargos e Benefícios anuais, mensais e diários
A73: 2 | B73: Encargos e Benefícios anuais, mensais e diários | G73: Valor (R$)
A74: 2.1 | B74: 13º (décimo terceiro) Salário, Férias e Adicional de Férias | G74: =G48 -> 827.42
A75: 2.2 | B75: GPS, FGTS e outras contribuiçoes | G75: =G61 -> 1794.87
A76: 2.3 | B76: Benefícios Mensais e Diários | G76: =G69 -> 230.65
A77: TOTAL | G77: =SUM(G74:G76) -> 2852.94
A79: MÓDULO 3 - PROVISÃO PARA RESCISÃO
A81: 3 | B81: Provisão para Rescisão | F81: % | G81: Valor (R$)
A82: A | B82: Aviso prévio indenizado | F82: ='Ass. Op. Adm. II'!F83 -> 0.0242 | G82: =(G39)*F82 -> 98.01
A83: B | B83: Incidência do FGTS sobre Aviso Prévio Indenizado | F83: ='Ass. Op. Adm. II'!F84 -> 0.0019 | G83: =(G39)*F83 -> 7.7
A84: C | B84: Multa do FGTS e contribuição social sobre o Aviso Prévio Indenizado | F84: ='Ass. Op. Adm. II'!F85 -> 0.0402 | G84: =(G39)*F84 -> 162.81
A85: D | B85: Aviso Prévio Trabalhado | F85: ='Ass. Op. Adm. II'!F86 -> 0.0014 | G85: =(G39)*F85 -> 5.67
A86: E | B86: Incidência dos encargos do submódulo 2.2 sobre Aviso Prévio Trabalhado | F86: ='Ass. Op. Adm. II'!F87 -> 0.0005 | G86: =(G39)*F86 -> 2.03
A87: F | B87: Multa do FGTS e contribuição social sobre o Aviso Prévio Trabalhado | F87: ='Ass. Op. Adm. II'!F88 -> 0.0066 | G87: =(G39)*F87 -> 26.73
A88: TOTAL | F88: =SUM(F82:F87) -> 0.0748 | G88: =SUM(G82:G87) -> 302.95
A90: MÓDULO 4 - CUSTO DE REPOSIÇÃO DO PROFISSIONAL AUSENTE
A92: Submódulo 4.1 - Ausências Legais
A93: 4.1 | B93: Ausências legais | F93: % | G93: Valor (R$)
A94: A | B94: Férias | F94: ='Ass. Op. Adm. II'!F95 -> 0.0908 | G94: =G39*F94 -> 367.74
A95: B | B95: Ausências legais | F95: ='Ass. Op. Adm. II'!F96 -> 0.0058 | G95: =G39*F95 -> 23.49
A96: C | B96: Licença paternidade | F96: ='Ass. Op. Adm. II'!F97 -> 0.0002 | G96: =G39*F96 -> 0.81
A97: D | B97: Ausência por Acidente de trabalho | F97: ='Ass. Op. Adm. II'!F98 -> 0.0001 | G97: =G39*F97 -> 0.41
A98: E | B98: Afastamento Maternidade | F98: ='Ass. Op. Adm. II'!F99 -> 0.0006 | G98: =G39*F98 -> 2.43
A99: F | B99: Outros (auxílio doença) | F99: ='Ass. Op. Adm. II'!F100 -> 0.0268 | G99: =G39*F99 -> 108.54
A100: TOTAL | F100: =SUM(F94:F99) -> 0.1243 | G100: =SUM(G94:G99) -> 503.42
A103: QUADRO RESUMO DO MÓDULO 4 - Custo de Reposição do Profissional Ausente
A105: 4 | B105: Custo de Reposição do Profissional Ausente | G105: Valor (R$)
A106: 4.1 | B106: Ausências legais | G106: =G100 -> 503.42
A107: TOTAL | G107: =G106 -> 503.42
A109: MÓDULO 5 - INSUMOS DIVERSOS
A111: 5 | B111: Insumos Diversos | G111: Valor (R$)
A112: A | B112: Uniformes | G112: 0
B113: Total | G113: =SUM(G112) -> 0
A115: MÓDULO 6 - CUSTOS INDIRETOS, TRIBUTOS E LUCRO
A117: 6 | B117: Custos Indiretos, Tributos e Lucro | F117: % | G117: Valor (R$)
A118: A | B118: Custos Indiretos | F118: ='Ass. Op. Adm. II'!F119 -> 0.03 | G118: =G134*F118 -> 231.28
A119: B | B119: Lucro | F119: ='Ass. Op. Adm. II'!F120 -> 0.0679 | G119: =(G134+G118)*F119 -> 539.17
A120: C | B120: Tributos
A121: c.1 | B121: COFINS | F121: ='Ass. Op. Adm. II'!F122 -> 0.076 | G121: =E141 -> 751.56
A122: c.2 | B122: PIS | F122: ='Ass. Op. Adm. II'!F123 -> 0.0165 | G122: =E142 -> 163.17
A123: c.3 | B123: ISSQN | F123: ='Ass. Op. Adm. II'!F124 -> 0.05 | G123: =E143 -> 494.45
B124: Total | F124: =SUM(F118:F123) -> 0.2404 | G124: =SUM(G118:G123) -> 2179.63
A126: 2. QUADRO - RESUMO DO CUSTO POR EMPREGADO
B128: Mão de obra vinculada à execução contratual (valor por empregado) | G128: Valor (R$)
A129: A | B129: Módulo 1 - Composição da Remuneração | G129: =G39 -> 4050
A130: B | B130: Módulo 2 - Encargos e Benefícios Anuais, Mensais e Diários | G130: =G77 -> 2852.94
A131: C | B131: Módulo 3 - Provisão para recisão | G131: =G88 -> 302.95
A132: D | B132: Módulo 4 - Custo de Reposição do Profissional Ausente | G132: =G107 -> 503.42
A133: E | B133: Módulo 5 - Insumos diversos | G133: =G113 -> 0
A134: Subtotal ( A + B +C + D + E) | G134: =SUM(G129:G133) -> 7709.31
A135: E | B135: Módulo 6 - Custos indiretos, Tributos e lucro | G135: =G124 -> 2179.63
A136: Valor total por empregado | G136: =G134+G135 -> 9888.94
A138: P0 = (MÓD 1+MÓD 2+MÓD 3+MÓD 4) + (CI) + (L) | E138: =G39+G77+G88+G107+G113+G118+G119 -> 8479.76
A139: P1 = P0/(1 - (pis+confins+iss)) | E139: =E138/(1-(F121+F122+F123)) -> 9888.93
A140: T = P1 - P0 | E140: =E139-E138 -> 1409.17
A141: COFINS = ((cofins)/(pis+cofins+iss) x T | E141: =((F121)/(F121+F122+F123))*E140 -> 751.56
A142: PIS = ((pis)/(pis+cofins+iss) x T | E142: =((F122)/(F121+F122+F123))*E140 -> 163.17
A143: ISS = (iss/(pis+cofins+iss)) x T | E143: =((F123/(F121+F122+F123))*E140) -> 494.45

Sheet Assist. Condução
A6: PLANILHA DE CUSTOS E FORMAÇÃO DE PREÇOS
B8: ='Aux. Adm.'!B8 -> Nº Processo | E8: ='Aux. Adm.'!E8 -> 59512.000251/2023-61
B9: ='Aux. Adm.'!B9 -> Licitação nº
A10: DISCRIMINAÇÃO DOS SERVIÇOS (dados referentes à contratação)
A12: A | B12: Ano do Acordo, Convenção ou Dissídio Coletivo | F12: ='Aux. Adm.'!F12 -> 2023 - PB000071/2023
A13: B | B13: Município/UF | F13: ='Aux. Adm.'!F13 -> João Pessoa/PB
A14: C | B14: Data de Registro no MTE | F14: ='Aux. Adm.'!F14 -> 15/03/2023
A15: D | B15: Nº de meses de execução contratual | F15: ='Aux. Adm.'!F15 -> 12 (doze) meses
A17: IDENTIFICAÇÃO DO SERVIÇO
A19: Tipo de Serviço | C19: Unidade de Medida | E19: Quantidade total a contratar (em função da unidade de medida)
A20: Assistente de Condução | C20: Posto de serviço | E20: 1
A22: 1. MÓDULOS
A24: MÃO DE OBRA
A25: Mão de obra vinculada à execução contratual
A27: Dados para composição dos custos referente à mão de obra
A28: 1 | B28: Tipo de serviço | G28: Assistente de Condução (A3)
A29: 2 | B29: Classificação Brasileira de Ocupações (CBO) | G29: 3421-25 | H29: CCT 2022
A30: 3 | B30: Salário Normativo da Categoria Profissional | G30: =2325.64*(1+H30) -> 2465.18 | H30: 0.06 | I30: Reajuste
A31: 4 | B31: Categoria profissional (vinculada à execução contratual) | G31: Apoio Administrativo
A32: 5 | B32: Data-Base da categoria (dia/mês/ano) | G32: 01° de janeiro
A35: MÓDULO 1: COMPOSIÇÃO DA REMUNERAÇÃO
A37: 1 | B37: Composição da Remuneração | G37: Valor (R$)
A38: A | B38: Salário Base | G38: =G30 -> 2465.18
B39: Total | G39: =G38 -> 2465.18
A41: MÓDULO 2: ENCARGOS E BENEFÍCIOS ANUAIS, MENSAIS E DIÁRIOS
A43: Submódulo 2.1 - 13º (décimo terceiro) Salário, Férias e Adicional de Férias
A45: 2.1 | B45: 13º (décimo terceiro) Salário, Férias e Adicional de Férias | F45: % | G45: Valor (R$)
A46: A | B46: 13º (décimo terceiro) Salário | F46: ='Ass. Op. Adm. II'!F46 -> 0.0833 | G46: =G39*F46 -> 205.35
A47: B | B47: Férias e Adicional de Férias | F47: ='Ass. Op. Adm. II'!F47 -> 0.121 | G47: =G39*F47 -> 298.29
B48: Incidência do módulo 2.2 sobre o módulo 2.1 | F48: 0.0752 | G48: =G39*F48 -> 185.38
A49: TOTAL | F49: =SUM(F46:F48) -> 0.2795 | G49: =SUM(G46:G48) -> 689.02
A51: Submódulo 2.2 - Encargos previdenciários (GPS), Fundo de Garantia por tempo de Serviço (FGTS) e outras contribuições:
A53: 2.2 | B53: GPS, FGTS e outras contribuiçoes | F53: % | G53: Valor (R$)
A54: A | B54: INSS | F54: ='Ass. Op. Adm. II'!F54 -> 0.2 | G54: =($G$39+$G$49)*F54 -> 630.84
A55: B | B55: SESI ou SESC | F55: ='Ass. Op. Adm. II'!F55 -> 0.015 | G55: =($G$39+$G$49)*F55 -> 47.31
A56: C | B56: SENAI ou SENAC | F56: ='Ass. Op. Adm. II'!F56 -> 0.01 | G56: 31.54
A57: D | B57: INCRA | F57: ='Ass. Op. Adm. II'!F57 -> 0.002 | G57: 6.31
A58: E | B58: Salário educação | F58: ='Ass. Op. Adm. II'!F58 -> 0.025 | G58: 78.86
A59: F | B59: FGTS | F59: ='Ass. Op. Adm. II'!F59 -> 0.08 | G59: 252.34
A60: G | B60: SAT | F60: ='Ass. Op. Adm. II'!F60 -> 0.03 | G60: 94.63
A61: H | B61: SEBRAE | F61: ='Ass. Op. Adm. II'!F61 -> 0.006 | G61: 18.93
A62: TOTAL | F62: =SUM(F54:F61) -> 0.368 | G62: =SUM(G54:G61) -> 1160.76
A64: Submódulo 2.3 - Benefícios Mensais e Diários
A66: 2.3 | B66: Benefícios Mensais e Diários | G66: Valor (R$)
A67: A | B67: Transporte | G67: =IF((4.7*2*21)-(6%*G38)>0,(4.7*2*21)-(6%*G38),0) -> 49.49
A68: B | B68: Auxílio alimentação (Cláusula 12ª CCT 2023) | G68: 500
A69: C | B69: Auxílio Saúde - Cláusula 14ª; Auxílio Morte/Funeral - Cláusula 16ª; Seguro de Vida - Cláusula 18ª; Assistência e Cuidado Pessoal - Cláusula 20ª | G69: =20+5+5+40 -> 70
B70: Total de Benefícios mensais e diários | G70: =SUM(G67:G69) -> 619.49
A72: QUADRO RESUMO DO MÓDULO 2 - Encargos e Benefícios anuais, mensais e diários
A74: 2 | B74: Encargos e Benefícios anuais, mensais e diários | G74: Valor (R$)
A75: 2.1 | B75: 13º (décimo terceiro) Salário, Férias e Adicional de Férias | G75: =G49 -> 689.02
A76: 2.2 | B76: GPS, FGTS e outras contribuiçoes | G76: =G62 -> 1160.76
A77: 2.3 | B77: Benefícios Mensais e Diários | G77: =G70 -> 619.49
A78: TOTAL | G78: =SUM(G75:G77) -> 2469.27
A80: MÓDULO 3 - PROVISÃO PARA RESCISÃO
A82: 3 | B82: Provisão para Rescisão | F82: % | G82: Valor (R$)
A83: A | B83: Aviso prévio indenizado | F83: ='Ass. Op. Adm. II'!F83 -> 0.0242 | G83: =(G39)*F83 -> 59.66
A84: B | B84: Incidência do FGTS sobre Aviso Prévio Indenizado | F84: ='Ass. Op. Adm. II'!F84 -> 0.0019 | G84: =(G39)*F84 -> 4.68
A85: C | B85: Multa do FGTS e contribuição social sobre o Aviso Prévio Indenizado | F85: ='Ass. Op. Adm. II'!F85 -> 0.0402 | G85: =(G39)*F85 -> 99.1
A86: D | B86: Aviso Prévio Trabalhado | F86: ='Ass. Op. Adm. II'!F86 -> 0.0014 | G86: =(G39)*F86 -> 3.45
A87: E | B87: Incidência dos encargos do submódulo 2.2 sobre Aviso Prévio Trabalhado | F87: ='Ass. Op. Adm. II'!F87 -> 0.0005 | G87: =(G39)*F87 -> 1.23
A88: F | B88: Multa do FGTS e contribuição social sobre o Aviso Prévio Trabalhado | F88: ='Ass. Op. Adm. II'!F88 -> 0.0066 | G88: =(G39)*F88 -> 16.27
A89: TOTAL | F89: =SUM(F83:F88) -> 0.0748 | G89: =SUM(G83:G88) -> 184.39
A91: MÓDULO 4 - CUSTO DE REPOSIÇÃO DO PROFISSIONAL AUSENTE
A93: Submódulo 4.1 - Ausências Legais
A94: 4.1 | B94: Ausências legais | F94: % | G94: Valor (R$)
A95: A | B95: Férias | F95: ='Ass. Op. Adm. II'!F95 -> 0.0908 | G95: =G39*F95 -> 223.84
A96: B | B96: Ausências legais | F96: ='Ass. Op. Adm. II'!F96 -> 0.0058 | G96: =G39*F96 -> 14.3
A97: C | B97: Licença paternidade | F97: ='Ass. Op. Adm. II'!F97 -> 0.0002 | G97: =G39*F97 -> 0.49
A98: D | B98: Ausência por Acidente de trabalho | F98: ='Ass. Op. Adm. II'!F98 -> 0.0001 | G98: =G39*F98 -> 0.25
A99: E | B99: Afastamento Maternidade | F99: ='Ass. Op. Adm. II'!F99 -> 0.0006 | G99: =G39*F99 -> 1.48
A100: F | B100: Outros (auxílio doença) | F100: ='Ass. Op. Adm. II'!F100 -> 0.0268 | G100: =G39*F100 -> 66.07
A101: TOTAL | F101: =SUM(F95:F100) -> 0.1243 | G101: =SUM(G95:G100) -> 306.43
A104: QUADRO RESUMO DO MÓDULO 4 - Custo de Reposição do Profissional Ausente
A106: 4 | B106: Custo de Reposição do Profissional Ausente | G106: Valor (R$)
A107: 4.1 | B107: Ausências legais | G107: =G101 -> 306.43
A108: TOTAL | G108: =G107 -> 306.43
A110: MÓDULO 5 - INSUMOS DIVERSOS
A112: 5 | B112: Insumos Diversos | G112: Valor (R$)
A113: A | B113: Uniformes | G113: =Uniformes!F14 -> 103.39
B114: Total | G114: =SUM(G113) -> 103.39
A116: MÓDULO 6 - CUSTOS INDIRETOS, TRIBUTOS E LUCRO
A118: 6 | B118: Custos Indiretos, Tributos e Lucro | F118: % | G118: Valor (R$)
A119: A | B119: Custos Indiretos | F119: ='Ass. Op. Adm. II'!F119 -> 0.03 | G119: =G135*F119 -> 165.86
A120: B | B120: Lucro | F120: ='Ass. Op. Adm. II'!F120 -> 0.0679 | G120: =(G135+G119)*F120 -> 386.66
A121: C | B121: Tributos
A122: c.1 | B122: COFINS | F122: ='Ass. Op. Adm. II'!F122 -> 0.076 | G122: =E142 -> 538.98
A123: c.2 | B123: PIS | F123: ='Ass. Op. Adm. II'!F123 -> 0.0165 | G123: =E143 -> 117.01
A124: c.3 | B124: ISSQN | F124: ='Ass. Op. Adm. II'!F124 -> 0.05 | G124: =E144 -> 354.59
B125: Total | F125: =SUM(F119:F124) -> 0.2404 | G125: =SUM(G119:G124) -> 1563.1
A127: 2. QUADRO - RESUMO DO CUSTO POR EMPREGADO
B129: Mão de obra vinculada à execução contratual (valor por empregado) | G129: Valor (R$)
A130: A | B130: Módulo 1 - Composição da Remuneração | G130: =G39 -> 2465.18
A131: B | B131: Módulo 2 - Encargos e Benefícios Anuais, Mensais e Diários | G131: =G78 -> 2469.27
A132: C | B132: Módulo 3 - Provisão para recisão | G132: =G89 -> 184.39
A133: D | B133: Módulo 4 - Custo de Reposição do Profissional Ausente | G133: =G108 -> 306.43
A134: E | B134: Módulo 5 - Insumos diversos | G134: =G114 -> 103.39
A135: Subtotal ( A + B +C + D + E) | G135: =SUM(G130:G134) -> 5528.66
A136: E | B136: Módulo 6 - Custos indiretos, Tributos e lucro | G136: =G125 -> 1563.1
A137: Valor total por empregado | G137: =G135+G136 -> 7091.76
A139: P0 = (MÓD 1+MÓD 2+MÓD 3+MÓD 4) + (CI) + (L) | E139: =G39+G78+G89+G108+G114+G119+G120 -> 6081.18
A140: P1 = P0/(1 - (pis+confins+iss)) | E140: =E139/(1-(F122+F123+F124)) -> 7091.76
A141: T = P1 - P0 | E141: =E140-E139 -> 1010.58
A142: COFINS = ((cofins)/(pis+cofins+iss) x T | E142: =((F122)/(F122+F123+F124))*E141 -> 538.98
A143: PIS = ((pis)/(pis+cofins+iss) x T | E143: =((F123)/(F122+F123+F124))*E141 -> 117.01
A144: ISS = (iss/(pis+cofins+iss)) x T | E144: =((F124/(F122+F123+F124))*E141) -> 354.59

Sheet Assist. Condução - Hora Extra
A6: PLANILHA DE CUSTOS E FORMAÇÃO DE PREÇOS
B8: ='Aux. Adm.'!B8 -> Nº Processo | E8: ='Aux. Adm.'!E8 -> 59512.000251/2023-61
B9: ='Aux. Adm.'!B9 -> Licitação nº
A10: DISCRIMINAÇÃO DOS SERVIÇOS (dados referentes à contratação)
A12: A | B12: Ano do Acordo, Convenção ou Dissídio Coletivo | F12: ='Aux. Adm.'!F12 -> 2023 - PB000071/2023
A13: B | B13: Município/UF | F13: ='Aux. Adm.'!F13 -> João Pessoa/PB
A14: C | B14: Data de Registro no MTE | F14: ='Aux. Adm.'!F14 -> 15/03/2023
A15: D | B15: Nº de meses de execução contratual | F15: ='Aux. Adm.'!F15 -> 12 (doze) meses
A17: IDENTIFICAÇÃO DO SERVIÇO
A19: Tipo de Serviço | C19: Unidade de Medida | E19: Quantidade total a contratar (em função da unidade de medida)
A20: Assistente de Condução - Horas Extras | C20: Hora | E20: 1
A22: 1. MÓDULOS
A24: MÃO DE OBRA
A25: Mão de obra vinculada à execução contratual
A27: Dados para composição dos custos referente à mão de obra
A28: 1 | B28: Tipo de serviço | G28: Assistente de Condução (A3) - Horas Extras
A29: 2 | B29: Classificação Brasileira de Ocupações (CBO) | G29: 3421-25
A30: 3 | B30: Hora extra a 50% | G30: =(H30/220)*1.5 -> 16.81 | H30: ='Assist. Condução'!G30 -> 2465.18
A31: 4 | B31: Categoria profissional (vinculada à execução contratual) | G31: Apoio Administrativo
A32: 5 | B32: Data-Base da categoria (dia/mês/ano) | G32: 01° de janeiro
A35: MÓDULO 1: COMPOSIÇÃO DA REMUNERAÇÃO
A37: 1 | B37: Composição da Remuneração | G37: Valor (R$)
A38: A | B38: Hora extra a 50% - Assistente de Condução | G38: =G30 -> 16.81
B39: Total | G39: =G38 -> 16.81
A41: MÓDULO 2: ENCARGOS E BENEFÍCIOS ANUAIS, MENSAIS E DIÁRIOS
A43: Submódulo 2.1 - 13º (décimo terceiro) Salário, Férias e Adicional de Férias
A45: 2.1 | B45: 13º (décimo terceiro) Salário, Férias e Adicional de Férias | F45: % | G45: Valor (R$)
A46: A | B46: 13º (décimo terceiro) Salário | F46: ='Ass. Op. Adm. II'!F46 -> 0.0833 | G46: =G39*F46 -> 1.4
A47: B | B47: Férias e Adicional de Férias | F47: ='Ass. Op. Adm. II'!F47 -> 0.121 | G47: =G39*F47 -> 2.03
A48: TOTAL | F48: =SUM(F46:F47) -> 0.2043 | G48: =SUM(G46:G47) -> 3.43
A50: Submódulo 2.2 - Encargos previdenciários (GPS), Fundo de Garantia por tempo de Serviço (FGTS) e outras contribuições:
A52: 2.2 | B52: GPS, FGTS e outras contribuiçoes | F52: % | G52: Valor (R$)
A53: A | B53: INSS | F53: ='Ass. Op. Adm. II'!F54 -> 0.2 | G53: =($G$39+$G$48)*F53 -> 4.05
A54: B | B54: SESI ou SESC | F54: ='Ass. Op. Adm. II'!F55 -> 0.015 | G54: 0.3
A55: C | B55: SENAI ou SENAC | F55: ='Ass. Op. Adm. II'!F56 -> 0.01 | G55: 0.2
A56: D | B56: INCRA | F56: ='Ass. Op. Adm. II'!F57 -> 0.002 | G56: 0.04
A57: E | B57: Salário educação | F57: ='Ass. Op. Adm. II'!F58 -> 0.025 | G57: 0.51
A58: F | B58: FGTS | F58: ='Ass. Op. Adm. II'!F59 -> 0.08 | G58: 1.62
A59: G | B59: SAT | F59: ='Ass. Op. Adm. II'!F60 -> 0.03 | G59: 0.61
A60: H | B60: SEBRAE | F60: ='Ass. Op. Adm. II'!F61 -> 0.006 | G60: 0.12
A61: TOTAL | F61: =SUM(F53:F60) -> 0.368 | G61: =SUM(G53:G60) -> 7.45
A63: Submódulo 2.3 - Benefícios Mensais e Diários
A65: 2.3 | B65: Benefícios Mensais e Diários | G65: Valor (R$)
A66: A | B66: Transporte | G66: 0
A67: B | B67: Auxílio alimentação (Clausula 12ª CCT 2023) | G67: 0
A68: C | B68: Outros(COBERTURA SOCIAL) - Clausula 13ªCCT 2023 | G68: 0
B69: Total de Benefícios mensais e diários | G69: =SUM(G66:G68) -> 0
A71: QUADRO RESUMO DO MÓDULO 2 - Encargos e Benefícios anuais, mensais e diários
A73: 2 | B73: Encargos e Benefícios anuais, mensais e diários | G73: Valor (R$)
A74: 2.1 | B74: 13º (décimo terceiro) Salário, Férias e Adicional de Férias | G74: =G48 -> 3.43
A75: 2.2 | B75: GPS, FGTS e outras contribuiçoes | G75: =G61 -> 7.45
A76: 2.3 | B76: Benefícios Mensais e Diários | G76: =G69 -> 0
A77: TOTAL | G77: =SUM(G74:G76) -> 10.88
A79: MÓDULO 3 - PROVISÃO PARA RESCISÃO
A81: 3 | B81: Provisão para Rescisão | F81: % | G81: Valor (R$)
A82: A | B82: Aviso prévio indenizado | F82: ='Ass. Op. Adm. II'!F83 -> 0.0242 | G82: =(G39)*F82 -> 0.41
A83: B | B83: Incidência do FGTS sobre Aviso Prévio Indenizado | F83: ='Ass. Op. Adm. II'!F84 -> 0.0019 | G83: =(G39)*F83 -> 0.03
A84: C | B84: Multa do FGTS e contribuição social sobre o Aviso Prévio Indenizado | F84: ='Ass. Op. Adm. II'!F85 -> 0.0402 | G84: =(G39)*F84 -> 0.68
A85: D | B85: Aviso Prévio Trabalhado | F85: ='Ass. Op. Adm. II'!F86 -> 0.0014 | G85: =(G39)*F85 -> 0.02
A86: E | B86: Incidência dos encargos do submódulo 2.2 sobre Aviso Prévio Trabalhado | F86: ='Ass. Op. Adm. II'!F87 -> 0.0005 | G86: =(G39)*F86 -> 0.01
A87: F | B87: Multa do FGTS e contribuição social sobre o Aviso Prévio Trabalhado | F87: ='Ass. Op. Adm. II'!F88 -> 0.0066 | G87: =(G39)*F87 -> 0.11
A88: TOTAL | F88: =SUM(F82:F87) -> 0.0748 | G88: =SUM(G82:G87) -> 1.26
A90: MÓDULO 4 - CUSTO DE REPOSIÇÃO DO PROFISSIONAL AUSENTE
A92: Submódulo 4.1 - Ausências Legais
A93: 4.1 | B93: Ausências legais | F93: % | G93: Valor (R$)
A94: A | B94: Férias | F94: 0 | G94: =G39*F94 -> 0
A95: B | B95: Ausências legais | F95: 0 | G95: =G39*F95 -> 0
A96: C | B96: Licença paternidade | F96: 0 | G96: =G39*F96 -> 0
A97: D | B97: Ausência por Acidente de trabalho | F97: 0 | G97: =G39*F97 -> 0
A98: E | B98: Afastamento Maternidade | F98: 0 | G98: =G39*F98 -> 0
A99: F | B99: Outros (auxílio doença) | F99: ='Ass. Op. Adm. II'!F100 -> 0.0268 | G99: =G39*F99 -> 0.45
A100: TOTAL | F100: =SUM(F94:F99) -> 0.0268 | G100: =SUM(G94:G99) -> 0.45
A103: QUADRO RESUMO DO MÓDULO 4 - Custo de Reposição do Profissional Ausente
A105: 4 | B105: Custo de Reposição do Profissional Ausente | G105: Valor (R$)
A106: 4.1 | B106: Ausências legais | G106: =G100 -> 0.45
A107: TOTAL | G107: =G106 -> 0.45
A109: MÓDULO 5 - INSUMOS DIVERSOS
A111: 5 | B111: Insumos Diversos | G111: Valor (R$)
A112: A | B112: Uniformes | G112: 0
B113: Total | G113: =SUM(G112) -> 0
A115: MÓDULO 6 - CUSTOS INDIRETOS, TRIBUTOS E LUCRO
A117: 6 | B117: Custos Indiretos, Tributos e Lucro | F117: % | G117: Valor (R$)
A118: A | B118: Custos Indiretos | F118: ='Ass. Op. Adm. II'!F119 -> 0.03 | G118: =G134*F118 -> 0.88
A119: B | B119: Lucro | F119: ='Ass. Op. Adm. II'!F120 -> 0.0679 | G119: =(G134+G118)*F119 -> 2.06
A120: C | B120: Tributos
A121: c.1 | B121: COFINS | F121: ='Ass. Op. Adm. II'!F122 -> 0.076 | G121: =E141 -> 2.86
A122: c.2 | B122: PIS | F122: ='Ass. Op. Adm. II'!F123 -> 0.0165 | G122: 0.62
A123: c.3 | B123: ISSQN | F123: ='Ass. Op. Adm. II'!F124 -> 0.05 | G123: 1.88
B124: Total | F124: =SUM(F118:F123) -> 0.2404 | G124: =SUM(G118:G123) -> 8.3
A126: 2. QUADRO - RESUMO DO CUSTO POR EMPREGADO
B128: Mão de obra vinculada à execução contratual (valor por empregado) | G128: Valor (R$)
A129: A | B129: Módulo 1 - Composição da Remuneração | G129: =G39 -> 16.81
A130: B | B130: Módulo 2 - Encargos e Benefícios Anuais, Mensais e Diários | G130: =G77 -> 10.88
A131: C | B131: Módulo 3 - Provisão para recisão | G131: =G88 -> 1.26
A132: D | B132: Módulo 4 - Custo de Reposição do Profissional Ausente | G132: =G107 -> 0.45
A133: E | B133: Módulo 5 - Insumos diversos | G133: =G113 -> 0
A134: Subtotal ( A + B +C + D + E) | G134: =SUM(G129:G133) -> 29.4
A135: E | B135: Módulo 6 - Custos indiretos, Tributos e lucro | G135: =G124 -> 8.3
A136: Valor total por Hora Extra a 50% | G136: =G134+G135 -> 37.7
A138: P0 = (MÓD 1+MÓD 2+MÓD 3+MÓD 4) + (CI) + (L) | E138: =G39+G77+G88+G107+G113+G118+G119 -> 32.34
A139: P1 = P0/(1 - (pis+confins+iss)) | E139: =E138/(1-(F121+F122+F123)) -> 37.71
A140: T = P1 - P0 | E140: =E139-E138 -> 5.37
A141: COFINS = ((cofins)/(pis+cofins+iss) x T | E141: =((F121)/(F121+F122+F123))*E140 -> 2.86
A142: PIS = ((pis)/(pis+cofins+iss) x T | E142: =((F122)/(F121+F122+F123))*E140 -> 0.62
A143: ISS = (iss/(pis+cofins+iss)) x T | E143: =((F123/(F121+F122+F123))*E140) -> 1.88

Sheet Despesas com Viagens - Diárias
A7: Despesas com Viagens
A8: ITEM | B8: DISCRIMINAÇÃO | C8: QUANT. | D8: VALOR
D9: UNITÁRIO | E9: TOTAL
A10: 1 | B10: Diária (pernoite) - 13ª CCT 2023 | C10: =10*12 -> 120 | D10: 160 | E10: =C10*D10 -> 19200
A11: 2 | B11: Diária (sem pernoite) - 13ª CCT 2023 | C11: =5*12 -> 60 | D11: 80 | E11: =C11*D11 -> 4800
A12: 2 | B12: BDI + IMPOSTOS (18,44%) | E12: =(E10+E11)*'Assist. Condução'!F125 -> 5769.6
A13: 3 | B13: TOTAL + BDI + IMPOSTOS (18,44%) | E13: =SUM(E10:E12) -> 29769.6
A14: 4 | B14: TOTAL + BDI + IMPOSTOS (18,44%) P/ MÊS | E14: =E13/12 -> 2480.8
A16: Obs.: O cálculo do quantitativo de diárias foi baseado na estimativa de 10 diárias por mês, durante o período de 12 meses, totalizando 120 diárias.
A17: Obs.: O cálculo do quantitativo de diárias (12hs) foi baseado na estimativa de 05 diárias por mês, durante o período de 12 meses, totalizando 60 diárias (12hs).

Sheet Uniformes
A7: Despesas com Uniformes
A8: ITEM | B8: DISCRIMINAÇÃO | C8: QUANT. | D8: Unidade | E8: VALOR
E9: UNITÁRIO | F9: TOTAL
A10: 1 | B10: Calça/Saia | C10: 4 | D10: Unidade | E10: =(89+119.99+159.9+125.9)/4 -> 123.7 | F10: =C10*E10 -> 494.8
A11: 2 | B11: Camisa Social | C11: 6 | D11: Unidade | E11: =(89+83.99+89.9+109.9)/4 -> 93.2 | F11: =C11*E11 -> 559.2
A12: 3 | B12: Par de Sapatos | C12: 2 | D12: Par | E12: =(99.99+99.99+79.99)/3 -> 93.32 | F12: 186.64
A13: VALOR TOTAL DO UNIFORME (ANUAL) | F13: =SUM(F10:F12) -> 1240.64
A14: VALOR MENSAL DO UNIFORME POR COLABORADOR | B14: TOTAL + BDI + IMPOSTOS (18,44%) | F14: =F13/12 -> 103.39
A16: Obs.: Pela cláusula 34ª da CCT é obrigatório a composição mínima de 02 camisas, 02 calças e 01 par de sapatos, porém o quantitativo exigido pela Codevasf é o discriminado na tabela acima
A17: Obs.: Os uniformes deverão conter a identificação da empresa (nome e/ou logotipo) em local visível, pelo menos nas peças que compõem a parte superior do vestuário (impressa ou bordada).
